{"text_format":"1","workbook":"xlsx","n_sheets":8,"sheets":["Início","Desc Níveis","Desc Áreas","Identificação","Questionário","RelatórioFinal","RegistroRespostas","aux"],"not_rendered":{"charts":0,"images":2,"macros":1,"external_links":0,"defined_names":3,"comments":0,"pivot_tables":0},"unopened":[],"bounds":{"document_bytes":16777216,"sheet_cells":100000,"rows_first":2000,"rows_last":500,"rows_between":2000,"halvings":0,"cell_chars":16384,"cell_head_chars":4096},"cells_cut":0,"cells_raw":0,"read":"whole","date_system":"1900"}

{"sheet":"Início","index":0,"n_rows":27,"n_cols":6,"rows_kept":27,"cut":false,"hidden":false,"merged":[[25,2,25,10],[26,2,27,10],[3,5,3,18],[4,5,4,17],[6,5,6,18],[10,3,16,20],[17,6,17,19]]}
[]
[]
[]
[null,null,null,null,null,"Subdiretoria Técnica SDT - Divisão de Projetos DPJ"]
[null,null,null,null,null,"Programa de Pós Graduação em Ciências e Tecnologias Espaciais - CTE"]
[]
[null,null,null,null,null,"Nível de Maturidade de Fabricação - MRL"]
[]
[null,null,null,"O QUE É ?"]
[]
[null,null,null,"O MRL avalia a maturidade de fabricação de determinado objeto desde a pesquisa e desenvolvimento até a produção em larga escala, bem como identifica áreas de risco no processo de industrialização\n"]
[]
[]
[]
[]
[]
[]
[]
[]
[null,null,null,"A CALCULADORA FOI ADAPTADA COM BASE NA BIBLIOGRAFIA VIGENTE SOBRE O TEMA"]
[]
[]
[]
[]
[]
[null,null,"Autores: Msc. Marcílio Antonio Fernandes de Andrade"]
[null,null,"        Dr. Francisco Cristóvão Lourenço de Melo"]

{"sheet":"Desc Níveis","index":1,"n_rows":21,"n_cols":10,"rows_kept":21,"cut":false,"hidden":false,"merged":[[19,3,19,7],[20,3,20,7],[19,9,19,19],[20,9,20,19],[17,3,17,7],[18,3,18,7],[17,9,17,19],[18,9,18,19],[16,3,16,7],[15,9,15,19],[16,9,16,19],[13,3,13,7],[14,3,14,7],[13,9,13,19],[14,9,14,19],[11,3,11,7],[12,3,12,7],[11,9,11,19],[12,9,12,19],[15,3,15,7],[4,3,5,5],[5,6,5,12],[9,3,9,7],[9,9,9,19],[10,3,10,7],[10,9,10,13]]}
[]
[]
[]
[]
[null,null,null,"MRL"]
[null,null,null,null,null,null,"Descrição dos níveis"]
[]
[]
[]
[null,null,null,"Nível de Maturidade Tecnológica ",null,null,null,null,null,"Descrição"]
[]
[null,null,null,"MRL 1: Implicações básicas de fabricação identificadas.",null,null,null,null,null,"Nível mais baixo de preparação para a fabricação. Pesquisas básicas começam sob a forma de estudos."]
[null,null,null,"MRL 2: Conceitos de fabricação identificados.",null,null,null,null,null,"Caracteriza-se por descrever a aplicação de novos conceitos de fabricação. A pesquisa básica evolui para a pesquisa aplicada. Normalmente, esse nível de maturidade inclui, estudos teóricos e análise de abordagens de materiais e processos. Existe uma compreensão da viabilidade e risco de fabricação."]
[null,null,null,"MRL 3: Demonstração de conceito de fabricação desenvolvida.",null,null,null,null,null,"Inicia a validação dos conceitos de fabricação através de experimentos analíticos ou laboratoriais. Esse nível de maturidade é típico das tecnologias trabalhadas em pesquisa aplicada. Materiais e processos foram caracterizados para fabricação, mas avaliações e demonstrações adicionais são ainda necessárias. Modelos experimentais de hardware foram desenvolvidos em um ambiente de laboratório que pode possuir funcionalidades limitadas."]
[null,null,null,"MRL 4: Capacidade de produzir a tecnologia em um ambiente de laboratório.",null,null,null,null,null,"Indica que as tecnologias estão prontas para passar a fase de desenvolvimento. As tecnologias devem ter amadurecido para pelo menos TRL 4. Neste ponto, os investimentos necessários, como o desenvolvimento de tecnologia de fabricação, foram identificados. Processos para garantir a fabricação, produtividade e qualidade estão em vigor e são suficientes para produzir demonstradores de tecnologia. Os riscos de fabricação foram identificados para a construção de protótipos e os planos de mitigação estão em vigor. Os objetivos de custo foram estabelecidos e os drivers de custos de fabricação foram identificados. As avaliações de produtividade dos conceitos de design foram concluídas. Os principais parâmetros de desempenho do projeto foram identificados, bem como instalações, manipulação de material e habilidades de pessoal."]
[null,null,null,"MRL 5: Capacidade de produzir componentes de protótipo em ambiente de fabricação relevante.",null,null,null,null,null,"É típico do ponto médio na fase de desenvolvimento da tecnologia. As tecnologias devem ter amadurecido para pelo menos TRL 5. A base industrial foi avaliada para identificar potenciais fontes. Uma estratégia de fabricação foi refinada e integrada ao plano de gerenciamento de risco. A identificação de tecnologias e componentes críticos está completa. Materiais de protótipo, ferramentas e equipamentos de teste, bem como habilidades de pessoal foram demonstradas em componentes em um ambiente relevante para a produção, mas muitos processos e procedimentos de fabricação ainda estão em desenvolvimento. Os esforços de desenvolvimento de tecnologia de fabricação foram iniciados ou estão em andamento. As avaliações de produtibilidade de tecnologias e componentes chave estão em andamento. Um modelo de custo foi construído para avaliar o custo de fabricação projetado."]
[null,null,null,"MRL 6: Capacidade de produzir sistemas ou subsistemas do protótipo em ambiente de fabricação relevante.",null,null,null,null,null,"As tecnologias devem ter amadurecido para pelo menos TRL 6. Normalmente é visto como o nível de preparação para a fabricação. Uma abordagem de fabricação inicial foi desenvolvida. A maioria dos processos de fabricação foram definidos e caracterizados, mas pode ainda haver mudanças significativas de engenharia ou design no próprio sistema. No entanto, o desenho preliminar foi concluído e as avaliações de produção e os estudos de integração de tecnologias estão completos. Os processos e tecnologias de fabricação de protótipos, materiais, ferramentas, equipamentos de teste e habilidades de pessoal foram demonstrados em sistemas ou subsistemas em um ambiente relevante para a produção. As análises de custo e rendimento foram realizadas para avaliar como os dados do protótipo se comparam aos objetivos definidos. As considerações de produtibilidade moldaram os planos de desenvolvimento do sistema. A avaliação das capacidades industriais foi concluída. Os elementos chave da cadeia de suprimento foram identificados."]
[null,null,null,"MRL 7: Capacidade de produzir sistemas, subsistemas ou componentes em ambiente de fabricação representativo.",null,null,null,null,null,"É típico do início da industrialização. As tecnologias devem estar em um caminho para alcançar o TRL 7. A atividade de design detalhado do sistema está quase concluída. As especificações dos materiais foram aprovadas e os materiais estão disponíveis para atender ao cronograma planejado da implantação da linha piloto. Os processos e procedimentos de fabricação foram demonstrados em um ambiente representativo da produção. Estudos detalhados de produtibilidade foram concluídos e os aprimoramentos de produtibilidade e avaliações de risco estão em andamento. O modelo de custo foi atualizado com designs detalhados, integrados ao nível do sistema e rastreados em relação aos objetivos definidos. Os esforços de redução de custos foram priorizados e estão em andamento. As análises de rendimento e escala foram atualizadas com os dados representativos da produção. A garantia da qualidade da cadeia de suprimentos foi avaliada e os planos de aquisição de longo prazo estão em vigor. Foram desenvolvidos planos de produção e metas de qualidade. A instalação de equipamentos e ferramentas de teste estão em andamento e os planos de validação para tais equipamentos completos."]
[null,null,null,"MRL 8: Capacidade de linha piloto demonstrada. Pronto para início de produção.",null,null,null,null,null,"Está associado com a entrada em produção em baixa escala. As tecnologias devem ter amadurecido para, pelo menos, TRL 7 ou 8. O design detalhado do sistema é completo e suficientemente estável para dar início a produção de baixa escala. Todos os materiais, mão de obra, ferramentas, equipamentos de teste e instalações foram comprovados na linha piloto e estão disponíveis para atender ao cronograma planejado de início de produção. Os equipamentos de inspeção e teste foram validados por meio da linha piloto. Os processos e procedimentos de fabricação e qualidade foram comprovados em uma linha piloto, estão sob controle e prontos para início de produção. Os riscos de produtibilidade conhecidos não representam desafios significativos para início de produção. O modelo de custo e as análises de rendimento e escala foram atualizados com os resultados da linha piloto. O teste de qualificação do fornecedor e a inspeção de primeiro artigo foram concluídas. A cadeia de suprimentos está estabelecida para suportar o início de produção."]
[null,null,null,"MRL 9: Produção inicial demonstrada. Pronto para iniciar a produção em regime.",null,null,null,null,null,"O sistema conseguiu com sucesso uma produção inicial de baixa escala. As tecnologias devem ter amadurecido para TRL 8 ou 9. Este nível de maturidade é normalmente associado à produção em regime. Todos os requisitos de engenharia de sistemas devem ter sido cumpridos, de modo que existam mudanças mínimas do sistema. O projeto do sistema é estável e posto a prova em teste e avaliação. Materiais, peças, mão de obra, ferramentas, equipamentos de teste e instalações estão disponíveis para atender aos horários de produção planejados. Validação de equipamentos de inspeção e teste mantida e revalidada conforme necessário. A capabilidade do processo de fabricação em um ambiente de produção de baixa escala está em um nível de qualidade apropriado para atender às tolerâncias das características chave do design. O monitoramento do risco de produção está em andamento. Os objetivos de custo de produção de baixa escala foram atendidos e as curvas de aprendizado são analisadas com dados reais. O modelo de custo foi desenvolvido para a produção em regime e reflete o impacto da melhoria contínua."]
[null,null,null,"MRL 10: Produção em regime demonstrada e práticas de produção aprimoradas.",null,null,null,null,null,"Mais alto nível de maturidade de fabricação. As tecnologias devem ter amadurecido para o TRL 9. As mudanças de design são poucas e geralmente limitadas a melhorias de qualidade e custos. O sistema está em pleno regime de produção e atende a todos os requisitos de engenharia, desempenho, qualidade e confiabilidade. A capabilidade do processo de fabricação está no nível de qualidade apropriado. Todos os materiais, ferramentas, equipamentos de teste e inspeção, instalações e mão de obra estão em vigor e atendem aos requisitos de produção em regime. Os equipamentos de teste e inspeção são revalidados periodicamente. Os custos da unidade de produção atendem metas e o financiamento é suficiente para a produção às taxas exigidas. As práticas enxutas estão bem estabelecidas e as melhorias contínuas dos processos estão em andamento."]

{"sheet":"Desc Áreas","index":2,"n_rows":40,"n_cols":14,"rows_kept":40,"cut":false,"hidden":false,"merged":[[15,13,15,19],[14,3,15,7],[4,3,5,5],[5,6,5,12],[9,3,9,7],[9,9,9,19],[10,3,10,7],[10,9,10,13],[22,9,22,11],[22,13,22,19],[11,9,11,11],[11,13,11,19],[11,3,12,7],[12,9,12,11],[12,13,12,19],[14,9,14,11],[14,13,14,19],[15,9,15,11],[21,3,24,7],[24,9,24,11],[24,13,24,19],[23,9,23,11],[17,9,17,11],[17,13,17,19],[19,9,19,11],[19,13,19,19],[17,3,19,7],[21,9,21,11],[21,13,21,19],[18,9,18,11],[18,13,18,19],[23,13,23,19],[26,3,27,7],[26,9,26,11],[26,13,26,19],[27,9,27,11],[27,13,27,19],[29,3,31,7],[29,9,29,11],[29,13,29,19],[30,9,30,11],[30,13,30,19],[31,9,31,11],[31,13,31,19],[33,3,33,7],[33,9,33,11],[33,13,33,19],[35,3,36,7],[35,9,35,11],[35,13,35,19],[36,9,36,11],[36,13,36,19],[38,3,39,7],[38,9,38,11],[38,13,38,19],[39,9,39,11],[39,13,39,19]]}
[]
[]
[]
[]
[null,null,null,"MRL"]
[null,null,null,null,null,null,"Descrição das Áreas de Conhecimento"]
[]
[]
[]
[null,null,null,"Nível de Maturidade Tecnológica ",null,null,null,null,null,"Descrição"]
[]
[null,null,null,"A - Base Industrial e Tecnologia de Fabricação",null,null,null,null,null,"A.1 - Base Industrial",null,null,null,"Referente à capacidade da base industrial em apoiar o design, desenvolvimento, produção, operação, suporte de manutenção e eventual descarte com impactos ambientais associados."]
[null,null,null,null,null,null,null,null,null,"A.2 - Tecnolgia de Fabricação",null,null,null,"Referente ao nível de maturidade da tecnologia de fabricação em uso e avaliação da adequação dessas tecnologias no cenário atual. "]
[]
[null,null,null,"B - Design",null,null,null,null,null,"B.1 - Produtibilidade",null,null,null,"É definida como atributos de design que permitem a fabricação e montagem de equipamento repetidamente de forma a satisfazer os objetivos funcionais e fornecer uma excelente relação de custo e dentro de programação de produção. Em outras palavras, a produtibilidade é relativa às características do design que facilitam a sua produção de forma alcançar os objetivos de engenharia, qualidade e custo."]
[null,null,null,null,null,null,null,null,null,"B.2 - Maturidade do Design",null,null,null,"Avalia a estabilidade do design em relação aos testes operacionais e as necessidades eventuais de mudanças"]
[]
[null,null,null,"C - Custos e Recursos Financeiros",null,null,null,null,null,"C.1 - Conhecimento dos Custos de Produção",null,null,null,"É relacionado à apuração dos custos. Serve para subsidiar a administração na formação do preço de venda dos seus produtos e serviços, atender a legislação fiscal vigente, e fornecer informações gerenciais que auxilie o processo de tomada de decisões."]
[null,null,null,null,null,null,null,null,null,"C.2 - Análise de Custo",null,null,null,"Avalia o quão bem a organização analisa seus custos com o intuito de buscar otimização."]
[null,null,null,null,null,null,null,null,null,"C.3 - Orçamento e investimento para fabricação ",null,null,null,"Relativo ao orçamento e investimento disponível para produção."]
[]
[null,null,null,"D - Materiais",null,null,null,null,null,"D.1 - Maturidade dos materiais",null,null,null,"Relativo a estabilidade das especificações das matérias-primas e insumos recebidos e utilizados no processo de fabricação."]
[null,null,null,null,null,null,null,null,null,"D.2 - Disponibilidade",null,null,null,"Avalia o risco relativo a eventuais faltas de matérias-primas, obsolescência de materiais e problemas de embargos."]
[null,null,null,null,null,null,null,null,null,"D.3 - Gestão da cadeia de suprimentos ",null,null,null,"Se refere a adequação da cadeia de suprimentos aos requisitos da produção por meio da gestão dos principais fornecedores."]
[null,null,null,null,null,null,null,null,null,"D.4 - Manuseio especial ",null,null,null,"Avalia a forma com que produtos perigosos ou nocivos ao ambiente são manuseados e armazenados."]
[]
[null,null,null,"E - Capabilidade e Controle do Processo",null,null,null,null,null,"E.1 - Modelamento e simulação",null,null,null,"Relativo a existência de modelos de produção e se os mesmos são usados para melhorar os processos e inferir se os requisitos da produção podem ser atendidos."]
[null,null,null,null,null,null,null,null,null,"E.2 - Maturidade do processo de fabricação ",null,null,null,"Avalia se os processos de fabricação são estáveis, adequadamente controlados, capazes e alcançam os objetivos definidos."]
[]
[null,null,null,"F - Gestão da Qualidade",null,null,null,null,null,"F.1 - Sistema de gestão de qualidade",null,null,null,"Avalia a formalização dos processos da organização e como esses processos podem melhorar a qualidade dos produtos e serviços frente às demandas dos clientes."]
[null,null,null,null,null,null,null,null,null,"F.2 - Qualidade do produto ",null,null,null,"Avalia a forma como são controladas as características críticas dos produtos fabricados."]
[null,null,null,null,null,null,null,null,null,"F.3 - Gestão da qualidade do fornecedor ",null,null,null,"É referente às práticas de gestão da qualidade dos fornecedores e como a organização audita essas práticas."]
[]
[null,null,null,"G - Pessoas",null,null,null,null,null,null,null,null,null,"Se refere às habilidades, disponibilidade e número de pessoas necessárias para apoiar diretamente o processo de fabricação."]
[]
[null,null,null,"H - Instalações",null,null,null,null,null,"H.1 - Equipamentos e ferramentas ",null,null,null,"Avalia como os equipamentos e ferramentas necessários para a fabricação do produto são gerenciados e conservados."]
[null,null,null,null,null,null,null,null,null,"H.2 - Infraestrutura",null,null,null,"Relativo à estrutura física de produção."]
[]
[null,null,null,"I - Gestão da Fabricação",null,null,null,null,null,"I.1 - Planejamento e programação da fabricação ",null,null,null,"Avalia a capacidade da empresa de gerenciar a sua produção por meio de planejamentos, programações e instruções de trabalho."]
[null,null,null,null,null,null,null,null,null,"I.2 -Planejamento de materiais ",null,null,null,"Avalia a forma de gestão do planejamento dos materiais a serem usados na linha de produção."]

{"sheet":"Identificação","index":3,"n_rows":21,"n_cols":7,"rows_kept":21,"cut":false,"hidden":false,"merged":[[8,4,9,8],[8,9,9,24],[10,4,12,24],[15,4,15,5],[2,4,2,6],[3,4,3,6],[3,12,3,15],[4,6,4,19],[5,4,5,24],[6,4,7,8],[6,9,7,24],[18,4,18,5],[18,6,18,24],[19,4,19,5],[19,6,19,24],[20,4,20,5],[20,6,20,24],[15,6,15,24],[16,4,16,5],[16,6,16,24],[17,4,17,5],[17,6,17,24]]}
[]
[]
[]
[]
[null,null,null,null,null,null,"CALCULADORA DE MRL DCTA/ITA-2018-1"]
[]
[]
[]
[null,null,null,null,"Identificação da avaliação:"]
[]
[null,null,null,null,"Preencher os dados da avaliação: \n1) Nome do sistema, subsistema ou compontente a ser avaliado\n2) Organização avaliada\n3) Meta de MRL\n3) Dados da equipe que participa da avaliação\n4) Responsável pela avaliação\n5) Data"]
[]
[]
[]
[]
[null,null,null,null,"Sistema / Subsistema / Componente"]
[null,null,null,null,"Organização"]
[null,null,null,null,"META"]
[null,null,null,null,"Equipe avaliada"]
[null,null,null,null,"Responsável pela avaliação"]
[null,null,null,null,"Data"]

{"sheet":"Questionário","index":4,"n_rows":344,"n_cols":12,"rows_kept":344,"cut":false,"hidden":false,"merged":[[2,5,2,6]]}
[null,null,null,null,null,null,null,null,null,null,null,"Sim"]
[null,null,null,null,null,null,null,null,null,null,null,"Não"]
[null,null,null,null,null,"CALCULADORA MRL DCTA/ITA-2018-1"]
[]
[]
[]
[null,null,null,null,"NÍVEL MRL"]
[]
[null,null,null,"MRL","Áres de Conhecimento","Desdobramento Área de Conhecimento","Questão MRL","Resposta","Evidências"]
[null,null,null,1,"B - Design","B.2 - Maturidade do Design","As oportunidades de pesquisa de fabricação foram identificadas?"]
[null,null,null,1,"C - Custo e Recursos Financeiros","C.2 - Análise de Custo","As implicações de custo de fabricação foram identificadas?"]
[null,null,null,1,"C - Custo e Recursos Financeiros","C.3 - Orçamento e Investimento para Fabricação","As possíveis fontes de investimento foram identificadas?"]
[null,null,null,1,"D - Materiais","D.1 - Maturidade dos Materiais","As propriedades de materiais foram identificadas para pesquisas?"]
[null,null,null,2,"A - Base Industrial e Tecnologia de Fabricação","A.2 - Tecnologia de Fabricação","Novos conceitos de fabricação e potenciais soluções foram identificadas?"]
[null,null,null,2,"B - Design","B.2 - Maturidade do Design","Aplicações foram definidas?"]
[null,null,null,2,"B - Design","B.2 - Maturidade do Design","Grandes objetivos de desempenho foram identificados de forma a gerar as opções de fabricação?"]
[null,null,null,2,"C - Custo e Recursos Financeiros","C.1 - Conhecimento do Custo de Produção","A abordagem do modelo de custo foi definida?"]
[null,null,null,2,"C - Custo e Recursos Financeiros","C.2 - Análise de Custo","Os elementos de custo foram identificados?"]
[null,null,null,2,"C - Custo e Recursos Financeiros","C.3 - Orçamento e Investimento para Fabricação","O programa/projeto tem estimativas orçamentárias razoáveis obtidas através experimentos?"]
[null,null,null,2,"D - Materiais","D.1 - Maturidade dos Materiais","As propriedades e características dos materiais foram estimadas?"]
[null,null,null,2,"D - Materiais","D.2 - Disponibilidade","A disponibilidade de material foi avaliada?"]
[null,null,null,2,"D - Materiais","D.4 - Manuseio Especial","Uma avaliação inicial dos potenciais requisitos regulamentares e preocupações especiais de manipulação foi concluída?"]
[null,null,null,2,"E - Capabilidade e Controle do Processo","E.1 - Modelamento e Simulação","Os modelos iniciais foram desenvolvidos, se aplicável?"]
[null,null,null,2,"E - Capabilidade e Controle do Processo","E.2 - Maturidade do Processo de Fabricação ","Foram identificadas abordagens de materiais e/ou processos?"]
[null,null,null,3,"A - Base Industrial e Tecnologia de Fabricação","A.1 - Base Industrial","Foram identificadas as fontes de fabricação das tecnologias necessárias? (conhece o \"estado da arte\")"]
[null,null,null,3,"A - Base Industrial e Tecnologia de Fabricação","A.2 - Tecnologia de Fabricação","As tecnologias de fabricação foram identificadas por meio de experimentos ou modelos?"]
[null,null,null,3,"B - Design","B.1 - Produtibilidade","Os materias/processos relevantes foram avaliados para a habilidade de fabricação usando experimentos ou modelos?"]
[null,null,null,3,"B - Design","B.2 - Maturidade do Design","Os requisitos de desempenho de nível superior foram definidos?"]
[null,null,null,3,"B - Design","B.2 - Maturidade do Design","Os trade offs nas opções de design foram avaliados com base em experimentos?"]
[null,null,null,3,"B - Design","B.2 - Maturidade do Design","Os requisitos de ciclo de vida do produto e requisitos técnicos estão sendo avaliados?"]
[null,null,null,3,"C - Custo e Recursos Financeiros","C.1 - Conhecimento do Custo de Produção","Os objetivos custo foram identificados?"]
[null,null,null,3,"C - Custo e Recursos Financeiros","C.1 - Conhecimento do Custo de Produção","Foi desenvolvido modelo de custo inicial com base em experimentos?"]
[null,null,null,3,"C - Custo e Recursos Financeiros","C.2 - Análise de Custo","Foi realizada uma análise de sensibilidade dos drivers de custo para definir a estratégia de desenvolvimento de produção?"]
[null,null,null,3,"C - Custo e Recursos Financeiros","C.3 - Orçamento e Investimento para Fabricação","O programa/projeto tem estimativas orçamentárias razoáveis para iniciar a revisão de requisitos do sistema (SRR)?"]
[null,null,null,3,"D - Materiais","D.1 - Maturidade dos Materiais","As propriedades dos materiais foram validadas e avaliadas quanto à fabricação básica usando experimentos?"]
[null,null,null,3,"D - Materiais","D.2 - Disponibilidade","Foram identificados problemas de ampliação de escala dos materiais?"]
[null,null,null,3,"D - Materiais","D.3 - Gestão da Cadeia de Suprimentos","Foi concluída uma avaliação inicial da potencial capabilidade da cadeia de suprimentos?"]
[null,null,null,3,"D - Materiais","D.4 - Manuseio Especial","Uma avaliação inicial dos potenciais requisitos regulamentares e preocupações especiais de manipulação foi concluída?"]
[null,null,null,3,"D - Materiais","D.4 - Manuseio Especial","Algum possível tratamento especial aplicado no laboratório?"]
[null,null,null,3,"D - Materiais","D.4 - Manuseio Especial","Foram avaliadas preocupações de manipulação especial?"]
[null,null,null,3,"E - Capabilidade e Controle do Processo","E.1 - Modelamento e Simulação","Os conceitos de fabricação propostos ou as necessidades de produtibilidade foram identificadas com base em modelos de processo de alto nível?"]
[null,null,null,3,"E - Capabilidade e Controle do Processo","E.2 - Maturidade do Processo de Fabricação ","Os processos de fabricação críticos foram identificados por meio de experimentação?"]
[null,null,null,3,"E - Capabilidade e Controle do Processo","E.2 - Maturidade do Processo de Fabricação ","Os processos de fabricação de alto nível foram documentados?"]
[null,null,null,3,"G - Pessoas","G.1 - Mão-de-obra de fabricação","As novas habilidades de fabricação foram identificadas?"]
[null,null,null,3,"G - Pessoas","G.1 - Mão-de-obra de fabricação","Foram avaliadas as habilidades de fabricação necessárias para produzir, testar e apoiar os conceitos propostos?"]
[null,null,null,3,"H - Instalações","H.2 - Infraestrutura","Foram identificados requisitos/necessidades de instalações especializadas?"]
[null,null,null,4,"A - Base Industrial e Tecnologia de Fabricação","A.1 - Base Industrial","Foram identificadas a capabilidade da base industrial, lacunas e riscos para os componentes e/ou processos chave?"]
[null,null,null,4,"A - Base Industrial e Tecnologia de Fabricação","A.2 - Tecnologia de Fabricação","A ciência de fabricação pertinente e avançadas tecnologias de fabricação foram identificadas?"]
[null,null,null,4,"B - Design","B.1 - Produtibilidade","As avaliações iniciais de produtibilidade e de fabricação dos conceitos de sistemas preferidos foram concluídas?"]
[null,null,null,4,"B - Design","B.1 - Produtibilidade","Os resultados da avaliação da produtibilidade e de fabricação estão sendo refletidos nos principais componentes/tecnologias do produto?"]
[null,null,null,4,"B - Design","B.1 - Produtibilidade","Os resultados da avaliação de produtibilidade e de fabricação estão sendo considerados na seleção dos conceito de design preferidos?"]
[null,null,null,4,"B - Design","B.2 - Maturidade do Design","Os principais parâmetros iniciais de desempenho  foram identificados para o concepção preferencial de sistemas?"]
[null,null,null,4,"B - Design","B.2 - Maturidade do Design","As características de sistema e medidas para suportar as capacidades necessárias foram identificadas?"]
[null,null,null,4,"B - Design","B.2 - Maturidade do Design","As restrições de forma, ajuste e função e as capacidades de fabricação foram identificadas para a concepção preferencial de sistemas?"]
[null,null,null,4,"C - Custo e Recursos Financeiros","C.1 - Conhecimento do Custo de Produção","Foram identificados os principais drivers de custos de fabricação, material e requisitos especializados?"]
[null,null,null,4,"C - Custo e Recursos Financeiros","C.1 - Conhecimento do Custo de Produção","Foi desenvolvido modelo de custo com base em variáveis de processo?"]
[null,null,null,4,"C - Custo e Recursos Financeiros","C.2 - Análise de Custo","Os riscos do custo do produto ficar acima do mercado foram avaliados?"]
[null,null,null,4,"C - Custo e Recursos Financeiros","C.3 - Orçamento e Investimento para Fabricação","As iniciativas de tecnologia de fabricação foram identificadas para reduzir custos?"]
[null,null,null,4,"C - Custo e Recursos Financeiros","C.3 - Orçamento e Investimento para Fabricação","O programa tem uma estimativa orçamentária razoável para se iniciar a revisão crítica do projeto (PDR)?"]
[null,null,null,4,"C - Custo e Recursos Financeiros","C.3 - Orçamento e Investimento para Fabricação","A estimativa de custo inclui o investimento de capital para equipamentos de produção em ambiente relevante?"]
[null,null,null,4,"D - Materiais","D.1 - Maturidade dos Materiais","Os materiais projetados foram produzidos em um ambiente de laboratório?"]
[null,null,null,4,"D - Materiais","D.2 - Disponibilidade","Os lead times projetados foram identificados para todos os materiais difíceis de obter, difíceis de processar ou perigosos?"]
[null,null,null,4,"D - Materiais","D.2 - Disponibilidade","As quantidades de materiais e os prazos de entrega foram estimados?"]
[null,null,null,4,"D - Materiais","D.3 - Gestão da Cadeia de Suprimentos","Foi concluída uma pesquisa para identificar potenciais fontes da cadeia de suprimentos?"]
[null,null,null,4,"D - Materiais","D.4 - Manuseio Especial","Uma lista de materiais perigosos foi atualizada?"]
[null,null,null,4,"D - Materiais","D.4 - Manuseio Especial","Requisito de manipulação especial foram identificados?"]
[null,null,null,4,"D - Materiais","D.4 - Manuseio Especial","Os procedimentos de manipulação especial foram aplicados no laboratório?"]
[null,null,null,4,"D - Materiais","D.4 - Manuseio Especial","As preocupações de manipulação especial foram avaliadas?"]
[null,null,null,4,"E - Capabilidade e Controle do Processo","E.1 - Modelamento e Simulação","O modelamento da produção e as abordagens de simulação para processo ou produto foram identificadas?"]
[null,null,null,4,"E - Capabilidade e Controle do Processo","E.2 - Maturidade do Processo de Fabricação ","Foi realizada uma pesquisa para determinar o estado atual dos processos críticos?"]
[null,null,null,4,"F - Gestão da Qualidade","F.1 - Sistema de Festão de Qualidade ","Foi identificada uma estratégia de qualidade?"]
[null,null,null,4,"F - Gestão da Qualidade","F.2 - Qualidade do Produto","Foi identificada estratégias de inspeção de produtos e testes de aceitação?"]
[null,null,null,4,"F - Gestão da Qualidade","F.3 - Gestão da Qualidade do Fornecedor ","Os riscos e a capabilidade de qualidade da base de fornecedores potencial estão identificados (incluir a gestão de qualidade dos fornecedores dos níveis inferiores)?"]
[null,null,null,4,"G - Pessoas","G.1 - Mão-de-obra de fabricação","Foi determinada a disponibilidade de mão-de-obra de desenvolvimento de processo para a fase de maturação tecnológica e redução de risco?"]
[null,null,null,4,"G - Pessoas","G.1 - Mão-de-obra de fabricação","Os conjuntos de habilidades de fabricação foram identificados?"]
[null,null,null,4,"G - Pessoas","G.1 - Mão-de-obra de fabricação","Os requisitos da força de trabalho de produção (técnica e operacional) foram avaliados como parte da fase de análise de alternativas?"]
[null,null,null,4,"H - Instalações","H.1 -Equipamentos e Ferramentas ","Os requisitos de equipamentos, ferramentas e equipamentos especiais de teste e de inspeção são considerados como parte da fase de análise de alternativas?"]
[null,null,null,4,"H - Instalações","H.2 - Infraestrutura","A disponibilidade de instalações de fabricação para desenvolvimento e produção de protótipos foi avaliada como parte da fase de Análise de Alternativas?"]
[null,null,null,4,"I - Gestão da Fabricação","I.1 - Planejamento e Programação da Fabricação ","A estratégia de fabricação foi desenvolvida e integrada com uma estratégia de aquisição?"]
[null,null,null,4,"I - Gestão da Fabricação","I.1 - Planejamento e Programação da Fabricação ","Os esforços de mitigação do risco do cronograma do protótipo foram incorporados na Estratégia de Aquisição?"]
[null,null,null,4,"I - Gestão da Fabricação","I.2 - Planejamento de Materiais","A lista de materiais de componentes do desenvolvimento de tecnologia foi desenvolvida com estimativas de lead time associadas?"]
[null,null,null,5,"A - Base Industrial e Tecnologia de Fabricação","A.1 - Base Industrial","Foi iniciada a avaliação da capabilidade da base industrial para identificar potenciais fornecedores para entregar a capabilidade requerida?"]
[null,null,null,5,"A - Base Industrial e Tecnologia de Fabricação","A.1 - Base Industrial","Foram identificados fornecedores de tecnologias únicos ou estrangeiros com potenciais problemas de obsolecência?"]
[null,null,null,5,"A - Base Industrial e Tecnologia de Fabricação","A.1 - Base Industrial","Foram iniciados planos para minimizar riscos associados a fornecedores únicos/estrangeiros?"]
[null,null,null,5,"A - Base Industrial e Tecnologia de Fabricação","A.2 - Tecnologia de Fabricação","Os esforços para desenvolvimento da tecnologia de fabricação requerida foram iniciados conforme o caso?"]
[null,null,null,5,"B - Design","B.1 - Produtibilidade","As avaliações de produtibilidade e de fabricação dos componentes/tecnologias principais foram iniciadas conforme apropriado?"]
[null,null,null,5,"B - Design","B.1 - Produtibilidade","As eventuais alterações de design em andamento consideram processos de fabricação e restrições de capabilidade da base industrial?"]
[null,null,null,5,"B - Design","B.2 - Maturidade do Design","Os requisitos de desempenho de nível inferior são suficientes para proceder ao projeto preliminar?"]
[null,null,null,5,"B - Design","B.2 - Maturidade do Design","Todas as tecnologias e componentes habilitadores/críticos são identificados?"]
[null,null,null,5,"B - Design","B.2 - Maturidade do Design","As tecnologias e componentes habilitadores/críticos consideram o ciclo de vida do produto?"]
[null,null,null,5,"B - Design","B.2 - Maturidade do Design","A avaliação das características-chave de design foi iniciada?"]
[null,null,null,5,"B - Design","B.2 - Maturidade do Design","Os dados do produto necessários para a fabricação de componentes do protótipos foram disponibilizados?"]
[null,null,null,5,"C - Custo e Recursos Financeiros","C.1 - Conhecimento do Custo de Produção","Existe um modelo de custo realista que inclua materiais, mão-de-obra, equipamentos, ferramentas, equipamentos de teste especiais, setup, rendimento, sucata, retrabalho e restrições de capabilidade e capacidade?"]
[null,null,null,5,"C - Custo e Recursos Financeiros","C.2 - Análise de Custo","Os custos são analisados usando componentes reais do protótipo para garantir que os objetivos de custos sejam realizáveis?"]
[null,null,null,5,"C - Custo e Recursos Financeiros","C.2 - Análise de Custo","As decisões sobre escolhas de design ou make/buy  são influenciadas pelos modelos de custo?"]
[null,null,null,5,"C - Custo e Recursos Financeiros","C.3 - Orçamento e Investimento para Fabricação","O programa tem uma estimativa orçamentária atualizada para se iniciar a revisão crítica do projeto (PDR)?"]
[null,null,null,5,"D - Materiais","D.1 - Maturidade dos Materiais","Todos os materiais foram fabricados ou produzidos em um ambiente de protótipo (pode ser numa aplicação/programa similar)?"]
[null,null,null,5,"D - Materiais","D.1 - Maturidade dos Materiais","Os esforços de maturação estão em vigor para abordar novos riscos de fornecimento de materiais para a demonstração de tecnologia?"]
[null,null,null,5,"D - Materiais","D.2 - Disponibilidade","Os problemas de disponibilidade de material foram abordados para a construção do protótipo?"]
[null,null,null,5,"D - Materiais","D.2 - Disponibilidade","Os principais riscos de fornecimento de materiais foram identificados para todos os materiais?"]
[null,null,null,5,"D - Materiais","D.3 - Gestão da Cadeia de Suprimentos","Foi concluída uma pesquisa para identificar potenciais fontes da cadeia de suprimentos?"]
[null,null,null,5,"D - Materiais","D.3 - Gestão da Cadeia de Suprimentos","As potenciais fontes da cadeia de suprimentos foram identificadas e avaliadas como capazes de suportar a construção do protótipo?"]
[null,null,null,5,"D - Materiais","D.4 - Manuseio Especial","Os procedimentos de manipulação especial foram aplicados no ambiente de produção relevante?"]
[null,null,null,5,"D - Materiais","D.4 - Manuseio Especial","Todas os requisitos de manipulação especial foram identificados?"]
[null,null,null,5,"D - Materiais","D.4 - Manuseio Especial","Novos processos de manipulação especial foram demonstrados em ambiente de laboratório?"]
[null,null,null,5,"E - Capabilidade e Controle do Processo","E.1 - Modelamento e Simulação","Os modelos de simulação iniciais (produto ou processo) foram desenvolvidos no nível de componente e usados para determinar restrições?"]
[null,null,null,5,"E - Capabilidade e Controle do Processo","E.2 - Maturidade do Processo de Fabricação ","A maturidade do processo foi avaliada em linhas de produção similares?"]
[null,null,null,5,"E - Capabilidade e Controle do Processo","E.2 - Maturidade do Processo de Fabricação ","Os requisitos de capabilidade de processo foram identificados para o ambiente de produção?"]
[null,null,null,5,"F - Gestão da Qualidade","F.1 - Sistema de Festão de Qualidade ","A estratégia de qualidade foi atualizada para refletir as atividades de identificação de características chave?"]
[null,null,null,5,"F - Gestão da Qualidade","F.2 - Qualidade do Produto","Foram identificados papéis e responsabilidades para procedimentos de teste de aceitação e inspeções de processo e finais?"]
[null,null,null,5,"F - Gestão da Qualidade","F.2 - Qualidade do Produto","Foram identificados controles estatísticos de processo para unidades de protótipos?"]
[null,null,null,5,"F - Gestão da Qualidade","F.3 - Gestão da Qualidade do Fornecedor ","Os riscos e a capabilidade de qualidade da base de fornecedores potencial estão identificados (incluir a gestão de qualidade dos fornecedores dos níveis inferiores)?"]
[null,null,null,5,"G - Pessoas","G.1 - Mão-de-obra de fabricação","As habilidades necessárias para a força de trabalho foram identificados para atender às necessidades de produção de protótipos?"]
[null,null,null,5,"G - Pessoas","G.1 - Mão-de-obra de fabricação","Os planos para as habilidades identificadas foram desenvolvidos para atender às necessidades de produção de protótipo?"]
[null,null,null,5,"G - Pessoas","G.1 - Mão-de-obra de fabricação","Os requisitos de certificação de habilidades especiais e treinamento foram estabelecidos?"]
[null,null,null,5,"H - Instalações","H.1 -Equipamentos e Ferramentas ","Os requisitos de equipamentos, ferramentas e equipamentos especiais de teste e de inspeção foram identificados?"]
[null,null,null,5,"H - Instalações","H.1 -Equipamentos e Ferramentas ","A justificativa de apoio e um cronograma foram fornecidos para os requisitos de equipamentos, ferramentas e equipamentos especiais de teste e de inspeção?"]
[null,null,null,5,"H - Instalações","H.2 - Infraestrutura","As instalações de fabricação foram identificadas para produção de protótipos?"]
[null,null,null,5,"H - Instalações","H.2 - Infraestrutura","Os planos para as instalações de fabricação identificadas foram desenvolvidos para produzir protótipos?"]
[null,null,null,5,"I - Gestão da Fabricação","I.1 - Planejamento e Programação da Fabricação ","A estratégia de fabricação foi refinada com base no conceito preferido?"]
[null,null,null,5,"I - Gestão da Fabricação","I.1 - Planejamento e Programação da Fabricação ","Os esforços de mitigação de risco do cronograma do protótipo foram iniciados?"]
[null,null,null,5,"I - Gestão da Fabricação","I.2 - Planejamento de Materiais","A lista de materiais do desenvolvimento de tecnologia está atualizada?"]
[null,null,null,5,"I - Gestão da Fabricação","I.2 - Planejamento de Materiais","Avaliações de make or buy iniciaram?"]
[null,null,null,5,"I - Gestão da Fabricação","I.2 - Planejamento de Materiais","As avaliações de make or buy levam em consideração as necessidades da linha de produção piloto, produção inicial de baixa escala e produção de escala total?"]
[null,null,null,6,"A - Base Industrial e Tecnologia de Fabricação","A.1 - Base Industrial","A base industrial está a ponto de suportar a fabricação de componentes do produto?"]
[null,null,null,6,"A - Base Industrial e Tecnologia de Fabricação","A.1 - Base Industrial","Os planos para minimizar as fontes únicas/estrangeiras e os problemas de obsolecência foram concluídos? "]
[null,null,null,6,"A - Base Industrial e Tecnologia de Fabricação","A.1 - Base Industrial","Os potenciais fornecedores alternativos foram identificadas?"]
[null,null,null,6,"A - Base Industrial e Tecnologia de Fabricação","A.2 - Tecnologia de Fabricação","As requeridas soluções de desenvolvimento das tecnologias de fabricação foram demonstradas num ambiente de produção incipiente?"]
[null,null,null,6,"B - Design","B.1 - Produtibilidade","As avaliações de produtibilidade e estudos de balanceamento da produtibilidade (performance x produtibilidade) das principais tecnologias/componentes foram concluídos?"]
[null,null,null,6,"B - Design","B.1 - Produtibilidade","As escolhas de design preliminares são avaliadas em relação aos processos de fabricação e às restrições da capabilidade da base industrial?"]
[null,null,null,6,"B - Design","B.1 - Produtibilidade","Os esforços de melhoria da produtibilidade (por exemplo, design para fabricação and design para montagem) foram iniciados?"]
[null,null,null,6,"B - Design","B.2 - Maturidade do Design","As especificações de desempenho do sistema foram estabelecidas?"]
[null,null,null,6,"B - Design","B.2 - Maturidade do Design","Os requisitos e características do produto estão bem definidos para suportar a revisão preliminar do projeto (PDR)?"]
[null,null,null,6,"B - Design","B.2 - Maturidade do Design","Os dados do produto essenciais para a prototipagem do subsistema / sistema foram disponibilizados?"]
[null,null,null,6,"B - Design","B.2 - Maturidade do Design","Todas as tecnologias/componentes habilitadores/críticos foram demonstrados?"]
[null,null,null,6,"B - Design","B.2 - Maturidade do Design","As características-chave do projeto preliminar foram definidas e os planos de mitigação estão em desenvolvimento?"]
[null,null,null,6,"C - Custo e Recursos Financeiros","C.1 - Conhecimento do Custo de Produção","O modelo de custo foi atualizado com requisitos de design, especificações de materiais, tolerâncias, programação integrada, resultados de simulações de sistema/subsistema e demonstrações de protótipo relevantes para produção?"]
[null,null,null,6,"C - Custo e Recursos Financeiros","C.2 - Análise de Custo","Os custos são analisados usando protótipos reais do sistema/sub-sistema para garantir que os objetivos de custos sejam alcançáveis?"]
[null,null,null,6,"C - Custo e Recursos Financeiros","C.2 - Análise de Custo","Foram desenvolvidas estratégias de redução e prevenção de custos?"]
[null,null,null,6,"C - Custo e Recursos Financeiros","C.3 - Orçamento e Investimento para Fabricação","O programa tem uma estimativa orçamentária inicial razoável para implantar linha de produção piloto?"]
[null,null,null,6,"D - Materiais","D.1 - Maturidade dos Materiais","A maturidade dos materiais foi verificada com artigos de demonstração tecnológica?"]
[null,null,null,6,"D - Materiais","D.1 - Maturidade dos Materiais","As especificações preliminares de materiais foram definidas?"]
[null,null,null,6,"D - Materiais","D.1 - Maturidade dos Materiais","As propriedades dos materiais foram adequadamente caracterizadas?"]
[null,null,null,6,"D - Materiais","D.2 - Disponibilidade","Foram avaliados riscos futuros em relação a diminuição de fornecedores de componentes e falta de materiais para componentes? "]
[null,null,null,6,"D - Materiais","D.2 - Disponibilidade","Os itens de longo prazo para componentes críticos foram identificados?"]
[null,null,null,6,"D - Materiais","D.2 - Disponibilidade","Os problemas potenciais de obsolecência foram identificados?"]
[null,null,null,6,"D - Materiais","D.3 - Gestão da Cadeia de Suprimentos","Os requisitos da cadeia de suprimentos e a lista de fornecedores críticos estão atualizados?"]
[null,null,null,6,"D - Materiais","D.4 - Manuseio Especial","Procedimentos de manipulação especial foram aplicados num ambiente relevante de produção?"]
[null,null,null,6,"D - Materiais","D.4 - Manuseio Especial","Os planos para tratamento das lacunas de requisitos de manipulação especial foram concluídos?"]
[null,null,null,6,"E - Capabilidade e Controle do Processo","E.1 - Modelamento e Simulação","Os modelos de simulação iniciais foram desenvolvidos no nível de tecnologia de subsistema ou sistema e usados para determinar as restrições do sistema?"]
[null,null,null,6,"E - Capabilidade e Controle do Processo","E.2 - Maturidade do Processo de Fabricação ","Os processos de fabricação chave foram demonstrados num ambiente de produção relevante?"]
[null,null,null,6,"E - Capabilidade e Controle do Processo","E.2 - Maturidade do Processo de Fabricação ","Foi iniciada a coletado ou estimativa de dados da capabilidade do processo da construção do protótipo iniciado e os requisitos de capabilidade do processo foram refinados?"]
[null,null,null,6,"F - Gestão da Qualidade","F.1 - Sistema de Festão de Qualidade ","Existe um Plano de Qualidade inicial e um Sistema de Gerenciamento de Qualidade em vigor?"]
[null,null,null,6,"F - Gestão da Qualidade","F.1 - Sistema de Festão de Qualidade ","Riscos de qualidade e métricas adequadas foram identificadas e planos de melhoria iniciados?"]
[null,null,null,6,"F - Gestão da Qualidade","F.2 - Qualidade do Produto","A abordagem de gestão de caracterísicas chave foi definida?"]
[null,null,null,6,"F - Gestão da Qualidade","F.2 - Qualidade do Produto","Os procedimentos de inspeção e aceitação adequados foram identificados para unidades de protótipos?"]
[null,null,null,6,"F - Gestão da Qualidade","F.2 - Qualidade do Produto","Os requisitos para procedimentos de teste de aceitação e requisitos de inspeção de processo foram definidos?"]
[null,null,null,6,"F - Gestão da Qualidade","F.3 - Gestão da Qualidade do Fornecedor ","Foram identificadas iniciativas específicas de melhoria da qualidade da base de fornecedores?"]
[null,null,null,6,"G - Pessoas","G.1 - Mão-de-obra de fabricação","As habilidades da mão-de-obra de fabricação estão disponíveis para um ambiente de produção incipiente?"]
[null,null,null,6,"G - Pessoas","G.1 - Mão-de-obra de fabricação","Foram identificados recursos (quantidades e  habilidades) para atingir os requisitos de ambiente  de produção piloto?"]
[null,null,null,6,"G - Pessoas","G.1 - Mão-de-obra de fabricação","Existem planos iniciais para alcançar os requisitos de quatidade e habilidades de recursos para ambiente  de produção piloto?"]
[null,null,null,6,"H - Instalações","H.1 -Equipamentos e Ferramentas ","O protótipo de equipamentos e ferramentas foram demonstrados num ambiente de produção incipiente?"]
[null,null,null,6,"H - Instalações","H.1 -Equipamentos e Ferramentas ","Foram definidos os requisitos de equipamentos de produção?"]
[null,null,null,6,"H - Instalações","H.2 - Infraestrutura","Foram definidas as instalações de fabricação para o ambiente de produção piloto?"]
[null,null,null,6,"H - Instalações","H.2 - Infraestrutura","Foram desenvolvidos os planos para a implantação das instalações de fabricação do ambiente de produção piloto?"]
[null,null,null,6,"I - Gestão da Fabricação","I.1 - Planejamento e Programação da Fabricação ","A abordagem de fabricação inicial foi desenvolvida?"]
[null,null,null,6,"I - Gestão da Fabricação","I.1 - Planejamento e Programação da Fabricação ","Foram definidos todos os eventos de fabricação do produto?"]
[null,null,null,6,"I - Gestão da Fabricação","I.1 - Planejamento e Programação da Fabricação ","Foi definida a abordagem de mitigação do risco de fabricação para o ambiente de produção piloto?"]
[null,null,null,6,"I - Gestão da Fabricação","I.2 - Planejamento de Materiais","Parte das decisões de make or buy foram tomadas?"]
[null,null,null,6,"I - Gestão da Fabricação","I.2 - Planejamento de Materiais","Foi iniciada a elaboração da estrutura de produtos?"]
[null,null,null,7,"A - Base Industrial e Tecnologia de Fabricação","A.1 - Base Industrial","A capabilidade industrial para apoiar a produção foi analisada?"]
[null,null,null,7,"A - Base Industrial e Tecnologia de Fabricação","A.1 - Base Industrial","A estabilidade de todos fornecedores únicos ou estrangeiros e os problemas de obsolecência estão sendo avaliados ou monitorados?"]
[null,null,null,7,"A - Base Industrial e Tecnologia de Fabricação","A.1 - Base Industrial","Existe um plano para desenvolvimento de fornecedores de tecnologias críticas cujas fontes sejam únicas ou estrangeiras?"]
[null,null,null,7,"A - Base Industrial e Tecnologia de Fabricação","A.2 - Tecnologia de Fabricação","As requeridas soluções de desenvolvimento de tecnologias de fabricação foram demonstradas num ambiente de produção representativo?"]
[null,null,null,7,"B - Design","B.1 - Produtibilidade","Os esforços para melhoria da produtibilidade (por exemplo, design para fabricação and design para montagem) estão em andamento para um sistema integrado e otimizado?"]
[null,null,null,7,"B - Design","B.2 - Maturidade do Design","O design e caracterísicas do produto estão bem definidos para suportar a revisão crítica do projeto (CDR), mesmo que mudanças de design possam ainda ser significativas?"]
[null,null,null,7,"B - Design","B.2 - Maturidade do Design","Todos os dados do produto essenciais para a fabricação de componentes foram disponibilizados?"]
[null,null,null,7,"B - Design","B.2 - Maturidade do Design","Foram identificados os potenciais riscos das características-chave?"]
[null,null,null,7,"B - Design","B.2 - Maturidade do Design","Os problemas das características-chave do design preliminar foram definidos e os planos de mitigação estão em desenvolvimento?"]
[null,null,null,7,"C - Custo e Recursos Financeiros","C.1 - Conhecimento do Custo de Produção","O modelo de custo foi atualizado com os resultados dos sistemas/sub-sistemas produzidos em um ambiente representativo de produção, layout e design de planta de produção e soluções de obsolescência?"]
[null,null,null,7,"C - Custo e Recursos Financeiros","C.2 - Análise de Custo","Os custos de fabricação foram definidos para o nível do sistema/sub-sistema e foram ajustados de forma a alcançar objetivos de custo?"]
[null,null,null,7,"C - Custo e Recursos Financeiros","C.2 - Análise de Custo","Os estudos detalhados de alteração de design e os pedidos de mudança de engenharia são sustentados pelas estimativas de custos?"]
[null,null,null,7,"C - Custo e Recursos Financeiros","C.2 - Análise de Custo","Estão em curso estratégias de redução e prevenção de custos?"]
[null,null,null,7,"C - Custo e Recursos Financeiros","C.3 - Orçamento e Investimento para Fabricação","O programa tem uma estimativa orçamentária confiável para para implantar linha de produção piloto?"]
[null,null,null,7,"D - Materiais","D.1 - Maturidade dos Materiais","A maturidade dos materiais é suficiente para a implantação de linha de produção piloto?"]
[null,null,null,7,"D - Materiais","D.1 - Maturidade dos Materiais","As características dos materiais necessários foram aprovadas?"]
[null,null,null,7,"D - Materiais","D.2 - Disponibilidade","As aquisições de itens de longo prazo foram identificadas/planejadas para a início da produção?"]
[null,null,null,7,"D - Materiais","D.2 - Disponibilidade","Um plano para mitigação de riscos de obsolecência de componentes está em vigor?"]
[null,null,null,7,"D - Materiais","D.2 - Disponibilidade","As estratégias de mitigação dos riscos de diminuição de fornecedores de componentes e falta de materiais para componentes estão em vigor?"]
[null,null,null,7,"D - Materiais","D.3 - Gestão da Cadeia de Suprimentos","Existe um processo efetivo e documentadao para o gerenciamento de fornecedores usando métricas para rastrear e gerenciar o desempenho do fornecedor?"]
[null,null,null,7,"D - Materiais","D.4 - Manuseio Especial","Os procedimentos de manipulação especial foram aplicados num ambiente de produção representativo?"]
[null,null,null,7,"D - Materiais","D.4 - Manuseio Especial","Os procedimentos de manipulação especial foram desenvolvidos e disponibilizados em instruções de trabalho para o ambiente de produção?"]
[null,null,null,7,"E - Capabilidade e Controle do Processo","E.1 - Modelamento e Simulação","Os modelos de simulação foram usados para determinar as restrições do sistema e identificar oportunidades de melhoria?"]
[null,null,null,7,"E - Capabilidade e Controle do Processo","E.2 - Maturidade do Processo de Fabricação ","Os processos de fabricação têm sido demonstrados com sucesso em um ambiente de produção representativo?"]
[null,null,null,7,"E - Capabilidade e Controle do Processo","E.2 - Maturidade do Processo de Fabricação ","Os requisitos de capabilidade do processo foram refinados?"]
[null,null,null,7,"F - Gestão da Qualidade","F.1 - Sistema de Festão de Qualidade ","As metas de qualidade foram estabelecidas?"]
[null,null,null,7,"F - Gestão da Qualidade","F.1 - Sistema de Festão de Qualidade ","Está sendo desenvolvido um plano de qualidade para o programa específico?"]
[null,null,null,7,"F - Gestão da Qualidade","F.2 - Qualidade do Produto","Os dados de qualidade do ambiente de produção representativo foram coletados e analisados e os resultados utilizados para moldar os planos de melhoria?"]
[null,null,null,7,"F - Gestão da Qualidade","F.2 - Qualidade do Produto","Os planos de controle estão concluídos para gerenciamento de Características-chave?"]
[null,null,null,7,"F - Gestão da Qualidade","F.2 - Qualidade do Produto","Os planos de teste e inspeção foram desenvolvidos?"]
[null,null,null,7,"F - Gestão da Qualidade","F.3 - Gestão da Qualidade do Fornecedor ","O sistema de gestão da qualidade dos principais fornecedores atendem aos padrões apropriados da indústria?"]
[null,null,null,7,"F - Gestão da Qualidade","F.3 - Gestão da Qualidade do Fornecedor ","Os dados de qualidade de unidades representativas de produção do fornecedor foram coletados e analisados? "]
[null,null,null,7,"F - Gestão da Qualidade","F.3 - Gestão da Qualidade do Fornecedor ","Existe uma estratégia delineada para auditorias de processos críticos dos fornecedores?"]
[null,null,null,7,"G - Pessoas","G.1 - Mão-de-obra de fabricação","Os requisitos de mão-de-obra de fabricação foram identificados para a linha de produção piloto?"]
[null,null,null,7,"G - Pessoas","G.1 - Mão-de-obra de fabricação","Foram desenvolvidos planos para alcançar os requisitos da linha de produção piloto?"]
[null,null,null,7,"G - Pessoas","G.1 - Mão-de-obra de fabricação","Os planos foram atualizados para alcançar requisitos de mão-de-obra para o início de produção?"]
[null,null,null,7,"G - Pessoas","G.1 - Mão-de-obra de fabricação","A mão-de-obra de fabricação da linha de produção piloto foi treinada num ambiente de produção representativo?"]
[null,null,null,7,"H - Instalações","H.1 -Equipamentos e Ferramentas ","Os esforços para design e desenvolvimento de equipamentos de produção estão em andamento?"]
[null,null,null,7,"H - Instalações","H.1 -Equipamentos e Ferramentas ","Foi desenvolvida uma estratégia de manutenção dos equipamentos de fabricação?"]
[null,null,null,7,"H - Instalações","H.2 - Infraestrutura","Foram definidas as instalações de fabricação para o ambiente de início de produção? "]
[null,null,null,7,"H - Instalações","H.2 - Infraestrutura","Foram desenvolvidos os planos para a implantação das instalações de fabricação do ambiente início de produção?"]
[null,null,null,7,"I - Gestão da Fabricação","I.1 - Planejamento e Programação da Fabricação ","O plano inicial de fabricação foi desenvolvido?"]
[null,null,null,7,"I - Gestão da Fabricação","I.1 - Planejamento e Programação da Fabricação ","Os riscos de fabricação foram integrados nos planos de mitigação de risco?"]
[null,null,null,7,"I - Gestão da Fabricação","I.1 - Planejamento e Programação da Fabricação ","Instruções de trabalho iniciais foram desenvolvidas?"]
[null,null,null,7,"I - Gestão da Fabricação","I.1 - Planejamento e Programação da Fabricação ","Um sistema de controle de produção efetivo está em vigor para apoiar a linha de produção piloto?"]
[null,null,null,7,"I - Gestão da Fabricação","I.2 - Planejamento de Materiais","As decisões de make or buy e estrutura de produtos estão concluídas para o ambiente de produção piloto?"]
[null,null,null,7,"I - Gestão da Fabricação","I.2 - Planejamento de Materiais","Estão implementados sistemas de planejamento de materiais para a construção da linha piloto?"]
[null,null,null,8,"A - Base Industrial e Tecnologia de Fabricação","A.1 - Base Industrial","As capacidades e capabilidades da base industrial são adequadas para apoiar o início da produção?"]
[null,null,null,8,"A - Base Industrial e Tecnologia de Fabricação","A.1 - Base Industrial","Todas os fornecedores únicos ou estrangeiros para tecnologias críticas foram identificados e existem planos de contigência caso haja indisponibilidade?"]
[null,null,null,8,"A - Base Industrial e Tecnologia de Fabricação","A.2 - Tecnologia de Fabricação","As requeridas soluções de desenvolvimento de tecnologias de fabricação foram validadas num linha de produção piloto?"]
[null,null,null,8,"B - Design","B.1 - Produtibilidade","As melhorias na produtibilidade foram implementadas no projeto?"]
[null,null,null,8,"B - Design","B.1 - Produtibilidade","Os problemas conhecidos de produtiblidade foram resolvidos de forma a não apresentar risco significativo para a início da produção?"]
[null,null,null,8,"B - Design","B.2 - Maturidade do Design","O design detalhado das caracterísitcas do produto e das interfaces está completo?"]
[null,null,null,8,"B - Design","B.2 - Maturidade do Design","Todos os dados do produto essenciais para a fabricação do sistema foram disponibilizados?"]
[null,null,null,8,"B - Design","B.2 - Maturidade do Design","As atuais mudanças de design tem impacto mínimo na produção inicial?"]
[null,null,null,8,"B - Design","B.2 - Maturidade do Design","As características-chave do projeto são alcancáveis de acordo com as demostrações da linha de produção piloto?"]
[null,null,null,8,"C - Custo e Recursos Financeiros","C.1 - Conhecimento do Custo de Produção","O modelo de custo foi atualizado com os resultados da linha de produção piloto?"]
[null,null,null,8,"C - Custo e Recursos Financeiros","C.2 - Análise de Custo","Os custos são analisados usando a linha de produção piloto real para garantir que os objetivos de custos sejam alcançáveis?"]
[null,null,null,8,"C - Custo e Recursos Financeiros","C.2 - Análise de Custo","A análise de custos de fabricação apoia as mudanças propostas em requisitos ou configuração?"]
[null,null,null,8,"C - Custo e Recursos Financeiros","C.3 - Orçamento e Investimento para Fabricação","O programa tem uma estimativa orçamentária confiável para dar início à produção?"]
[null,null,null,8,"C - Custo e Recursos Financeiros","C.3 - Orçamento e Investimento para Fabricação","Está disponível investimento necessário para início da produção?"]
[null,null,null,8,"D - Materiais","D.1 - Maturidade dos Materiais","Os materiais foram testados e validados durante a fase de desenvolvimento para suportar a produção inicial?"]
[null,null,null,8,"D - Materiais","D.1 - Maturidade dos Materiais","As especificações dos materiais estão estáveis?"]
[null,null,null,8,"D - Materiais","D.2 - Disponibilidade","As aquisições de itens de longo prazo foram iniciadas para a início da produção?"]
[null,null,null,8,"D - Materiais","D.2 - Disponibilidade","Todos os riscos de disponibilidade de materiais estão minimizados para a início da produção?"]
[null,null,null,8,"D - Materiais","D.3 - Gestão da Cadeia de Suprimentos","A cadeia de suprimentos é adequada para suportar o início de produção?"]
[null,null,null,8,"D - Materiais","D.3 - Gestão da Cadeia de Suprimentos","Existe um processo verificação de requisitos robusto, disciplinado e em vigor?"]
[null,null,null,8,"D - Materiais","D.3 - Gestão da Cadeia de Suprimentos","A conformidade do fornecedor com os requisitos do programa foi validada?"]
[null,null,null,8,"D - Materiais","D.4 - Manuseio Especial","Os procedimentos de manipulação especial foram aplicados na lina de produção piloto?"]
[null,null,null,8,"D - Materiais","D.4 - Manuseio Especial","Os procedimentos de manipulação especial foram demonstrados na fase de desenvolvimento ou em outros programas?"]
[null,null,null,8,"D - Materiais","D.4 - Manuseio Especial","Os riscos de manipulação especial foram minimizados para a início da produção?"]
[null,null,null,8,"D - Materiais","D.4 - Manuseio Especial","Todas as instruções de trabalho contém orientações para manipulação especial, quando necessário?"]
[null,null,null,8,"E - Capabilidade e Controle do Processo","E.1 - Modelamento e Simulação","Os modelos de simulação foram verificados por meio da linha de produção piloto?"]
[null,null,null,8,"E - Capabilidade e Controle do Processo","E.1 - Modelamento e Simulação","Os resultados da simulação foram usados para melhorar os processos e determinar se os requisitos para início de produção podem ser atendidos?"]
[null,null,null,8,"E - Capabilidade e Controle do Processo","E.2 - Maturidade do Processo de Fabricação ","Os processos de fabricação para início de produção foram verificados na linha de produção piloto?"]
[null,null,null,8,"E - Capabilidade e Controle do Processo","E.2 - Maturidade do Processo de Fabricação ","Os dados de capabilidade do ambiente de produção piloto atingem o objetivo do programa?"]
[null,null,null,8,"E - Capabilidade e Controle do Processo","E.2 - Maturidade do Processo de Fabricação ","Os requisitos de capabilidade do processo para a início da produção foram refinados com base nos dados da linha de produção piloto?"]
[null,null,null,8,"F - Gestão da Qualidade","F.1 - Sistema de Festão de Qualidade ","O plano de qualidade do programa e o Gerente de Qualidade foram estabelecidos?"]
[null,null,null,8,"F - Gestão da Qualidade","F.1 - Sistema de Festão de Qualidade ","As metas de qualidade foram alcançadas na linha de produção piloto e essa metas conduzem à melhoria contínua da qualidade?"]
[null,null,null,8,"F - Gestão da Qualidade","F.2 - Qualidade do Produto","As características-chave do produto são gerenciadas com procedimentos de medição e controles em vigor (por exemplo, CEP, relat análise falhas, auditorias, satisfação do cliente, etc.)?"]
[null,null,null,8,"F - Gestão da Qualidade","F.2 - Qualidade do Produto","Os dados da linha de produção piloto atendem aos requisitos de capabilidade para todas as características-chave do produto?"]
[null,null,null,8,"F - Gestão da Qualidade","F.2 - Qualidade do Produto","Os planos de teste e inspeção estão concluídos e validados para unidades de produção?"]
[null,null,null,8,"F - Gestão da Qualidade","F.3 - Gestão da Qualidade do Fornecedor ","Os produtos dos fornecedores foram submetidos aos testes de qualificação?"]
[null,null,null,8,"F - Gestão da Qualidade","F.3 - Gestão da Qualidade do Fornecedor ","Os testes de aceitação dos fornecedores são adequados para início da produção?"]
[null,null,null,8,"F - Gestão da Qualidade","F.3 - Gestão da Qualidade do Fornecedor ","Está em vigor um plano para auditorias de processos de fornecedores?"]
[null,null,null,8,"G - Pessoas","G.1 - Mão-de-obra de fabricação","Os requisitos de mão-de-obra de fabricação foram identificados para o início da produção?"]
[null,null,null,8,"G - Pessoas","G.1 - Mão-de-obra de fabricação","Foram desenvolvidos planos para alcançar os requisitos para início da produção?"]
[null,null,null,8,"G - Pessoas","G.1 - Mão-de-obra de fabricação","Os planos foram atualizados para alcançar requisitos de mão-de-obra para produção em regime?"]
[null,null,null,8,"G - Pessoas","G.1 - Mão-de-obra de fabricação","A mão-de-obra de fabricação foi treinada no ambiente de produção piloto?"]
[null,null,null,8,"H - Instalações","H.1 -Equipamentos e Ferramentas ","Todos os equipamentos e ferramentas foram testados no ambiente de produção piloto?"]
[null,null,null,8,"H - Instalações","H.1 -Equipamentos e Ferramentas ","Todos os requisitos de equipamentos e ferramentas foram identificados para o início da produção?"]
[null,null,null,8,"H - Instalações","H.1 -Equipamentos e Ferramentas ","A manutenção do equipamento de fabricação foi demonstrada num ambiente de produção piloto?"]
[null,null,null,8,"H - Instalações","H.2 - Infraestrutura","As instalações da linha de produção piloto foram demonstradas?"]
[null,null,null,8,"H - Instalações","H.2 - Infraestrutura","As instalações de fabricação são adequadas para início da produção?"]
[null,null,null,8,"H - Instalações","H.2 - Infraestrutura","Existem planos em vigor para apoiar a transição para a produção em regime?"]
[null,null,null,8,"H - Instalações","H.2 - Infraestrutura","A segurança do local de trabalho é adequada?"]
[null,null,null,8,"I - Gestão da Fabricação","I.1 - Planejamento e Programação da Fabricação ","O plano de fabricação está atualizado para o início de produção?"]
[null,null,null,8,"I - Gestão da Fabricação","I.1 - Planejamento e Programação da Fabricação ","Todos os principais riscos de fabricação foram identificados e avaliados e estão em planos de mitigação aprovados?"]
[null,null,null,8,"I - Gestão da Fabricação","I.1 - Planejamento e Programação da Fabricação ","As instruções de trabalho foram finalizadas?"]
[null,null,null,8,"I - Gestão da Fabricação","I.1 - Planejamento e Programação da Fabricação ","O sistema de controle de produção efetivo está em vigor para suportar o início da produção?"]
[null,null,null,8,"I - Gestão da Fabricação","I.2 - Planejamento de Materiais","As decisões de make or buy e estrutura de produtos estão concluídas para suportar o início de produção?"]
[null,null,null,8,"I - Gestão da Fabricação","I.2 - Planejamento de Materiais","Os sistemas de planejamento de materiais foram testados no ambiente de produção piloto e estão prontos para o início da produção?"]
[null,null,null,9,"A - Base Industrial e Tecnologia de Fabricação","A.1 - Base Industrial","Existe mais de um fornecedor brasileiro para tecnologias críticas?"]
[null,null,null,9,"A - Base Industrial e Tecnologia de Fabricação","A.1 - Base Industrial","A base industrial está pronta para suportar a produção em larga escala?"]
[null,null,null,9,"A - Base Industrial e Tecnologia de Fabricação","A.2 - Tecnologia de Fabricação","Existe um sistema de melhoria contínua das tecnologias de fabricação em uso, a fim de reduzir tempo de montagem, reduzir custo ou aumentar segurança?"]
[null,null,null,9,"B - Design","B.1 - Produtibilidade","As melhorias de produtibilidade foram analisadas quanto à eficácia durante o início da produção?"]
[null,null,null,9,"B - Design","B.1 - Produtibilidade","Os problemas / riscos de produtibilidade descobertos na produção foram atenuados para produção em larga escala?"]
[null,null,null,9,"B - Design","B.2 - Maturidade do Design","As maior parte das características e configurações do design do produto estão estáveis?"]
[null,null,null,9,"B - Design","B.2 - Maturidade do Design","O design do sistema foi validado através de testes operacionais?"]
[null,null,null,9,"B - Design","B.2 - Maturidade do Design","As mudanças de design estão limitadas a pequenas mudanças de configuração?"]
[null,null,null,9,"B - Design","B.2 - Maturidade do Design","No início da produção, as características-chave do design estão controladas dentro dos padrões de qualidade definidos?"]
[null,null,null,9,"C - Custo e Recursos Financeiros","C.1 - Conhecimento do Custo de Produção","O modelo de custo foi atualizado com dados reais do início da produção?"]
[null,null,null,9,"C - Custo e Recursos Financeiros","C.2 - Análise de Custo","Os objetivos de custo de produção foram atendidos no início da produção e a curva de aprendizado foi analisada com base em dados reais?"]
[null,null,null,9,"C - Custo e Recursos Financeiros","C.2 - Análise de Custo","As iniciativas de redução de custo são sistemáticas?"]
[null,null,null,9,"C - Custo e Recursos Financeiros","C.3 - Orçamento e Investimento para Fabricação","Todos os recursos necessários para dar início à produção já estão disponíveis (mão de obra, equipamentos, adaptações, etc) ?"]
[null,null,null,9,"D - Materiais","D.1 - Maturidade dos Materiais","Todos os materiais necessários foram testados e controlados de acordo com as especificações para o início da produção?"]
[null,null,null,9,"D - Materiais","D.1 - Maturidade dos Materiais","Os materiais foram validados de modo a suportar a produção em larga escala?"]
[null,null,null,9,"D - Materiais","D.2 - Disponibilidade","As aquisições de itens de longo prazo foram iniciadas para a produção em larga escala?"]
[null,null,null,9,"D - Materiais","D.2 - Disponibilidade","Os riscos de disponibilidade estão minimizados para a produção em larga escala?"]
[null,null,null,9,"D - Materiais","D.3 - Gestão da Cadeia de Suprimentos","Os acordos de longo prazo estão em vigor caso necessário?"]
[null,null,null,9,"D - Materiais","D.3 - Gestão da Cadeia de Suprimentos","As métricas de gestão dos principais fornecedores estão em vigor e sendo usadas para gerenciar riscos?"]
[null,null,null,9,"D - Materiais","D.4 - Manuseio Especial","Os procedimentos de manipulação especial foram aplicados e demonstrados em sua totalidade no ambiente de início de produção?"]
[null,null,null,9,"D - Materiais","D.4 - Manuseio Especial","Os riscos de manipulação especial foram minimizados para início da produção em larga escala?"]
[null,null,null,9,"E - Capabilidade e Controle do Processo","E.1 - Modelamento e Simulação","Os modelos de simulação foram verificados no início da produção e usados para auxiliar o seu gerenciamento?"]
[null,null,null,9,"E - Capabilidade e Controle do Processo","E.1 - Modelamento e Simulação","Os resultados dos modelos de simulação foram usados para determinar se os requisitos da produção em regime podem ser atingidos?"]
[null,null,null,9,"E - Capabilidade e Controle do Processo","E.2 - Maturidade do Processo de Fabricação ","Os processos de fabricação são estáveis, adequadamente controlados, capazes, e os processos de fabricação alcançaram objetivos do início de produção?"]
[null,null,null,9,"F - Gestão da Qualidade","F.1 - Sistema de Festão de Qualidade ","As metas de qualidade foram verificados no ambiente de início de produção?"]
[null,null,null,9,"F - Gestão da Qualidade","F.1 - Sistema de Festão de Qualidade ","Os processos de melhoria contínua de qualidade estão em vigor?"]
[null,null,null,9,"F - Gestão da Qualidade","F.1 - Sistema de Festão de Qualidade ","A revisão de metas de qualidade é conduzida regularmente com a ação apropriada sendo tomada?"]
[null,null,null,9,"F - Gestão da Qualidade","F.2 - Qualidade do Produto","Os dados da produção inicial demonstram que os processos de fabricação críticos para a qualidade são capazes e estão sob controle?"]
[null,null,null,9,"F - Gestão da Qualidade","F.3 - Gestão da Qualidade do Fornecedor ","A gestão da qualidade dos processos críticos de fabricação do fornecedor demonstram capabilidade e controle necessárias para início da produção?"]
[null,null,null,9,"F - Gestão da Qualidade","F.3 - Gestão da Qualidade do Fornecedor ","Os testes de aceitação dos fornecedores demonstram controle de qualidade adequados para produção em regime?"]
[null,null,null,9,"F - Gestão da Qualidade","F.3 - Gestão da Qualidade do Fornecedor ","As auditorias de qualidade do fornecedor são realizadas sempre que necessário para garantir a conformidade da especificação do fornecedor?"]
[null,null,null,9,"G - Pessoas","G.1 - Mão-de-obra de fabricação","Os requisitos da mão-de-obra de fabricação foram atendidos para início da produção?"]
[null,null,null,9,"G - Pessoas","G.1 - Mão-de-obra de fabricação","Os planos foram implementados para alcançar requisitos de mão-de-obra para produção em regime?"]
[null,null,null,9,"H - Instalações","H.1 -Equipamentos e Ferramentas ","Todos os equipamentos e ferramentas foram demonstrados no ambiente de início de produção?"]
[null,null,null,9,"H - Instalações","H.1 -Equipamentos e Ferramentas ","Requisitos adicionais dos equipamentos e ferramentas para a produção em regime foram identificados?"]
[null,null,null,9,"H - Instalações","H.1 -Equipamentos e Ferramentas ","Foi demonstrado o cronograma de manutenção do equipamento de fabricação?"]
[null,null,null,9,"H - Instalações","H.2 - Infraestrutura","As instalações de fabricação foram demonstradas satisfatoriamente no ambiente de início de produção?"]
[null,null,null,9,"H - Instalações","H.2 - Infraestrutura","Os planos para aumento de capacidade são adequados para a produção em regime?"]
[null,null,null,9,"I - Gestão da Fabricação","I.1 - Planejamento e Programação da Fabricação ","O plano de fabricação foi atualizado para a produção em regime?"]
[null,null,null,9,"I - Gestão da Fabricação","I.1 - Planejamento e Programação da Fabricação ","Todos os riscos de fabricação foram rastreados e mitigados?"]
[null,null,null,9,"I - Gestão da Fabricação","I.1 - Planejamento e Programação da Fabricação ","Existe um efetivo sistema de controle de produção em vigor para apoiar a produção em regime?"]
[null,null,null,9,"I - Gestão da Fabricação","I.2 - Planejamento de Materiais","As decisões de make or buy e estrutura de produtos estão concluídas para suportar a produção em regime?"]
[null,null,null,9,"I - Gestão da Fabricação","I.2 - Planejamento de Materiais","O sistema de planejamento de materiais foi testado e aprovado no ambiente início de produção e é suficiente para a produção em regime?"]
[null,null,null,10,"A - Base Industrial e Tecnologia de Fabricação","A.1 - Base Industrial","A base industrial suporta plenamente a produção em larga escala?"]
[null,null,null,10,"A - Base Industrial e Tecnologia de Fabricação","A.1 - Base Industrial","As capacidades e capabilidades da indústria espacial brasileira são avaliadas para suportar modificações, melhorias, e outros potenciais requisitos de manufatura?"]
[null,null,null,10,"A - Base Industrial e Tecnologia de Fabricação","A.2 - Tecnologia de Fabricação","As tecnologias de fabricação usadas são as mais adequadas em relação ao cenário atual de novas tecnologias de fabricação?"]
[null,null,null,10,"B - Design","B.1 - Produtibilidade","As melhorias de produtibilidade do design foram demostradas na produção em larga escala?"]
[null,null,null,10,"B - Design","B.1 - Produtibilidade","O processo de melhoria de produbilidade de design está em vigor?"]
[null,null,null,10,"B - Design","B.2 - Maturidade do Design","O desing do produto está estável?"]
[null,null,null,10,"B - Design","B.2 - Maturidade do Design","Na produção em larga escala, as características-chave do design estão controladas dentro dos padrões de qualidade definidos?"]
[null,null,null,10,"C - Custo e Recursos Financeiros","C.1 - Conhecimento do Custo de Produção","O modelo de custo foi validado com dados reais da produção em larga escala?"]
[null,null,null,10,"C - Custo e Recursos Financeiros","C.2 - Análise de Custo","Os objetivos de custo de produção foram alcançados na produção em larga escala?"]
[null,null,null,10,"C - Custo e Recursos Financeiros","C.2 - Análise de Custo","As iniciativas de redução de custo são sistemáticas?"]
[null,null,null,10,"C - Custo e Recursos Financeiros","C.3 - Orçamento e Investimento para Fabricação","O orçamento de produção é suficiente para a fabricação do produto na escala definida?"]
[null,null,null,10,"D - Materiais","D.1 - Maturidade dos Materiais","Todos os materiais foram aprovados dentro das especificações da produção em larga escala?"]
[null,null,null,10,"D - Materiais","D.2 - Disponibilidade","Todos os riscos significativos de disponbilidade de material foram tratados para a produção em larga escala? "]
[null,null,null,10,"D - Materiais","D.3 - Gestão da Cadeia de Suprimentos","A cadeia de suprimentos é estável e adequada para suportar a produção em larga escala?"]
[null,null,null,10,"D - Materiais","D.4 - Manuseio Especial","Os procedimentos de manipulação especial foram plenamente implementados na produção em larga escala?"]
[null,null,null,10,"E - Capabilidade e Controle do Processo","E.1 - Modelamento e Simulação","Os modelos de simulação têm sido verificados da produção em regime?"]
[null,null,null,10,"E - Capabilidade e Controle do Processo","E.1 - Modelamento e Simulação","Os modelos de simulação da produção tem sido usados como ferramenta na gestão da produção em larga escala?"]
[null,null,null,10,"E - Capabilidade e Controle do Processo","E.2 - Maturidade do Processo de Fabricação ","Os processos de fabricação são estáveis, adequadamente controlados, capazes, e os processos de fabricação alcançaram objetivos da produção em regime?"]
[null,null,null,10,"F - Gestão da Qualidade","F.1 - Sistema de Festão de Qualidade ","As metas de qualidade foram verificados no ambiente de produção em regime?"]
[null,null,null,10,"F - Gestão da Qualidade","F.2 - Qualidade do Produto","Os resultados dos dados de qualidade alcançam o nível estatístico estipulado em todas as características-chave do design?"]
[null,null,null,10,"F - Gestão da Qualidade","F.2 - Qualidade do Produto","Os resultados dos dados da qualidade refletem a melhoria contínua?"]
[null,null,null,10,"F - Gestão da Qualidade","F.3 - Gestão da Qualidade do Fornecedor ","Os dados de qualidade do fornecedor demonstram gestão adequada de características-chave de materais fornecidos e controle de seus processos de fabricação?"]
[null,null,null,10,"G - Pessoas","G.1 - Mão-de-obra de fabricação","Os requisitos da mão-de-obra de fabricação foram atendidos para a produção em regime, incluindo certificações necessárias?"]
[null,null,null,10,"G - Pessoas","G.1 - Mão-de-obra de fabricação","As habilidades da mão-de-obra de fabricação estão sendo mantidas?"]
[null,null,null,10,"H - Instalações","H.1 -Equipamentos e Ferramentas ","Os equipamentos e ferramentas validados estão prontos para suportar a produção em regime?"]
[null,null,null,10,"H - Instalações","H.1 -Equipamentos e Ferramentas ","O cronograma planejado de manutenção do equipamento de fabricação foi executado a contento?"]
[null,null,null,10,"H - Instalações","H.2 - Infraestrutura","As capacidades de produção das instalações foram demonstradas de modo a atender os requisitos da produção em regime?"]
[null,null,null,10,"I - Gestão da Fabricação","I.1 - Planejamento e Programação da Fabricação ","Todos os riscos de fabricação foram mitigados?"]
[null,null,null,10,"I - Gestão da Fabricação","I.2 - Planejamento de Materiais","O sistema de planejamento de materiais foi validado na produção em regime?"]

{"sheet":"RelatórioFinal","index":5,"n_rows":49,"n_cols":40,"rows_kept":49,"cut":false,"hidden":false,"merged":[[18,5,18,14],[17,4,17,14],[2,4,2,14],[6,4,6,14],[8,5,8,14],[9,5,9,14],[10,5,10,14],[11,5,11,14],[12,5,12,14]]}
[]
[]
[null,null,null,null,"CALCULADORA MRL DCTA/ITA-2018-1"]
[]
[]
[]
[null,null,null,null,"Relatório da Avaliação"]
[]
[null,null,null,null,"Sistema / Subsistema / Componente",{"$f":"IF(Identificação!G16=0,\"\",Identificação!G16)","v":""}]
[null,null,null,null,"Organização",{"$f":"IF(Identificação!G17=0,\"\",Identificação!G17)","v":""}]
[null,null,null,null,"Equipe avaliada",{"$f":"IF(Identificação!G19=0,\"\",Identificação!G19)","v":""}]
[null,null,null,null,"Responsável pela avaliação",{"$f":"IF(Identificação!G20=0,\"\",Identificação!G20)","v":""}]
[null,null,null,null,"Data",{"$f":"IF(Identificação!G21=0,\"\",Identificação!G21)","v":""}]
[]
[null,null,null,null,"MRL META",{"$f":"IF(Identificação!G18=0,\"\",Identificação!G18)","v":""}]
[null,null,null,null,"MRL ALCANÇADO",{"$f":"IF(OR(F21=\"r\",F24=\"r\",F27=\"r\",F31=\"r\",F36=\"r\",F39=\"r\",F43=\"r\",F44=\"r\",F47=\"r\"),\"\",IF(ISERROR(SMALL(RegistroRespostas!A2:A171,1)),\"\",SMALL(RegistroRespostas!A2:A171,1)))","v":""}]
[]
[null,null,null,null,"MRL"]
[null,null,null,null,null,"Níveis"]
[null,null,null,null,"Áreas de Conhecimento",1,2,3,4,5,6,7,8,9,10]
[null,null,null,null,"A - Base Industrial e Tecnologia de Fabricação",{"$f":"IF(OR(F22=\"r\",F23=\"r\"),\"r\",IF(OR(F22=\"a\",F23=\"a\"),\"a\",\"\"))","v":""},{"$f":"IF(OR(G22=\"r\",G23=\"r\"),\"r\",IF(OR(G22=\"a\",G23=\"a\"),\"a\",\"\"))","v":""},"","","","","","","",""]
[null,null,null,null,"A.1 - Base Industrial",{"$f":"IF(AND(T22=0,AE22=0),\"\",IF(T22<>0,\"r\",\"a\"))","v":""},{"$f":"IF(AND(U22=0,AF22=0),\"\",IF(U22<>0,\"r\",\"a\"))","v":""},"","","","","","","","",null,null,null,null,{"$f":"COUNTIF(RegistroRespostas!$H$2:$H$360,F$20&$E22&\"Não\")","v":0},{"$f":"COUNTIF(RegistroRespostas!$H$2:$H$360,G$20&$E22&\"Não\")","v":0},{"$f":"COUNTIF(RegistroRespostas!$H$2:$H$360,H$20&$E22&\"Não\")","v":0},{"$f":"COUNTIF(RegistroRespostas!$H$2:$H$360,I$20&$E22&\"Não\")","v":0},{"$f":"COUNTIF(RegistroRespostas!$H$2:$H$360,J$20&$E22&\"Não\")","v":0},{"$f":"COUNTIF(RegistroRespostas!$H$2:$H$360,K$20&$E22&\"Não\")","v":0},{"$f":"COUNTIF(RegistroRespostas!$H$2:$H$360,L$20&$E22&\"Não\")","v":0},{"$f":"COUNTIF(RegistroRespostas!$H$2:$H$360,M$20&$E22&\"Não\")","v":0},{"$f":"COUNTIF(RegistroRespostas!$H$2:$H$360,N$20&$E22&\"Não\")","v":0},{"$f":"COUNTIF(RegistroRespostas!$H$2:$H$360,O$20&$E22&\"Não\")","v":0},null,{"$f":"COUNTIF(RegistroRespostas!$H$2:$H$171,F$20&$E22&\"Sim\")","v":0},{"$f":"COUNTIF(RegistroRespostas!$H$2:$H$171,G$20&$E22&\"Sim\")","v":0},{"$f":"COUNTIF(RegistroRespostas!$H$2:$H$171,H$20&$E22&\"Sim\")","v":0},{"$f":"COUNTIF(RegistroRespostas!$H$2:$H$171,I$20&$E22&\"Sim\")","v":0},{"$f":"COUNTIF(RegistroRespostas!$H$2:$H$171,J$20&$E22&\"Sim\")","v":0},{"$f":"COUNTIF(RegistroRespostas!$H$2:$H$171,K$20&$E22&\"Sim\")","v":0},{"$f":"COUNTIF(RegistroRespostas!$H$2:$H$171,L$20&$E22&\"Sim\")","v":0},{"$f":"COUNTIF(RegistroRespostas!$H$2:$H$171,M$20&$E22&\"Sim\")","v":0},{"$f":"COUNTIF(RegistroRespostas!$H$2:$H$171,N$20&$E22&\"Sim\")","v":0},{"$f":"COUNTIF(RegistroRespostas!$H$2:$H$171,O$20&$E22&\"Sim\")","v":0}]
[null,null,null,null,"A.2 - Tecnologia de Fabricação",{"$f":"IF(AND(T23=0,AE23=0),\"\",IF(T23<>0,\"r\",\"a\"))","v":""},{"$f":"IF(AND(U23=0,AF23=0),\"\",IF(U23<>0,\"r\",\"a\"))","v":""},{"$f":"IF(AND(V23=0,AG23=0),\"\",IF(V23<>0,\"r\",\"a\"))","v":""},{"$f":"IF(AND(W23=0,AH23=0),\"\",IF(W23<>0,\"r\",\"a\"))","v":""},{"$f":"IF(AND(X23=0,AI23=0),\"\",IF(X23<>0,\"r\",\"a\"))","v":""},{"$f":"IF(AND(Y23=0,AJ23=0),\"\",IF(Y23<>0,\"r\",\"a\"))","v":""},{"$f":"IF(AND(Z23=0,AK23=0),\"\",IF(Z23<>0,\"r\",\"a\"))","v":""},{"$f":"IF(AND(AA23=0,AL23=0),\"\",IF(AA23<>0,\"r\",\"a\"))","v":""},{"$f":"IF(AND(AB23=0,AM23=0),\"\",IF(AB23<>0,\"r\",\"a\"))","v":""},{"$f":"IF(AND(AC23=0,AN23=0),\"\",IF(AC23<>0,\"r\",\"a\"))","v":""},null,null,null,null,{"$f":"COUNTIF(RegistroRespostas!$H$2:$H$360,F$20&$E23&\"Não\")","v":0},{"$f":"COUNTIF(RegistroRespostas!$H$2:$H$360,G$20&$E23&\"Não\")","v":0},{"$f":"COUNTIF(RegistroRespostas!$H$2:$H$360,H$20&$E23&\"Não\")","v":0},{"$f":"COUNTIF(RegistroRespostas!$H$2:$H$360,I$20&$E23&\"Não\")","v":0},{"$f":"COUNTIF(RegistroRespostas!$H$2:$H$360,J$20&$E23&\"Não\")","v":0},{"$f":"COUNTIF(RegistroRespostas!$H$2:$H$360,K$20&$E23&\"Não\")","v":0},{"$f":"COUNTIF(RegistroRespostas!$H$2:$H$360,L$20&$E23&\"Não\")","v":0},{"$f":"COUNTIF(RegistroRespostas!$H$2:$H$360,M$20&$E23&\"Não\")","v":0},{"$f":"COUNTIF(RegistroRespostas!$H$2:$H$360,N$20&$E23&\"Não\")","v":0},{"$f":"COUNTIF(RegistroRespostas!$H$2:$H$360,O$20&$E23&\"Não\")","v":0},null,{"$f":"COUNTIF(RegistroRespostas!$H$2:$H$171,F$20&$E23&\"Sim\")","v":0},{"$f":"COUNTIF(RegistroRespostas!$H$2:$H$171,G$20&$E23&\"Sim\")","v":0},{"$f":"COUNTIF(RegistroRespostas!$H$2:$H$171,H$20&$E23&\"Sim\")","v":0},{"$f":"COUNTIF(RegistroRespostas!$H$2:$H$171,I$20&$E23&\"Sim\")","v":0},{"$f":"COUNTIF(RegistroRespostas!$H$2:$H$171,J$20&$E23&\"Sim\")","v":0},{"$f":"COUNTIF(RegistroRespostas!$H$2:$H$171,K$20&$E23&\"Sim\")","v":0},{"$f":"COUNTIF(RegistroRespostas!$H$2:$H$171,L$20&$E23&\"Sim\")","v":0},{"$f":"COUNTIF(RegistroRespostas!$H$2:$H$171,M$20&$E23&\"Sim\")","v":0},{"$f":"COUNTIF(RegistroRespostas!$H$2:$H$171,N$20&$E23&\"Sim\")","v":0},{"$f":"COUNTIF(RegistroRespostas!$H$2:$H$171,O$20&$E23&\"Sim\")","v":0}]
[null,null,null,null,"B - Design",{"$f":"IF(OR(F25=\"r\",F26=\"r\"),\"r\",IF(OR(F25=\"a\",F26=\"a\"),\"a\",\"\"))","v":""},{"$f":"IF(OR(G25=\"r\",G26=\"r\"),\"r\",IF(OR(G25=\"a\",G26=\"a\"),\"a\",\"\"))","v":""},{"$f":"IF(OR(H25=\"r\",H26=\"r\"),\"r\",IF(OR(H25=\"a\",H26=\"a\"),\"a\",\"\"))","v":""},{"$f":"IF(OR(I25=\"r\",I26=\"r\"),\"r\",IF(OR(I25=\"a\",I26=\"a\"),\"a\",\"\"))","v":""},{"$f":"IF(OR(J25=\"r\",J26=\"r\"),\"r\",IF(OR(J25=\"a\",J26=\"a\"),\"a\",\"\"))","v":""},{"$f":"IF(OR(K25=\"r\",K26=\"r\"),\"r\",IF(OR(K25=\"a\",K26=\"a\"),\"a\",\"\"))","v":""},{"$f":"IF(OR(L25=\"r\",L26=\"r\"),\"r\",IF(OR(L25=\"a\",L26=\"a\"),\"a\",\"\"))","v":""},{"$f":"IF(OR(M25=\"r\",M26=\"r\"),\"r\",IF(OR(M25=\"a\",M26=\"a\"),\"a\",\"\"))","v":""},{"$f":"IF(OR(N25=\"r\",N26=\"r\"),\"r\",IF(OR(N25=\"a\",N26=\"a\"),\"a\",\"\"))","v":""},{"$f":"IF(OR(O25=\"r\",O26=\"r\"),\"r\",IF(OR(O25=\"a\",O26=\"a\"),\"a\",\"\"))","v":""}]
[null,null,null,null,"B.1 - Produtibilidade",{"$f":"IF(AND(T25=0,AE25=0),\"\",IF(T25<>0,\"r\",\"a\"))","v":""},{"$f":"IF(AND(U25=0,AF25=0),\"\",IF(U25<>0,\"r\",\"a\"))","v":""},{"$f":"IF(AND(V25=0,AG25=0),\"\",IF(V25<>0,\"r\",\"a\"))","v":""},{"$f":"IF(AND(W25=0,AH25=0),\"\",IF(W25<>0,\"r\",\"a\"))","v":""},{"$f":"IF(AND(X25=0,AI25=0),\"\",IF(X25<>0,\"r\",\"a\"))","v":""},{"$f":"IF(AND(Y25=0,AJ25=0),\"\",IF(Y25<>0,\"r\",\"a\"))","v":""},{"$f":"IF(AND(Z25=0,AK25=0),\"\",IF(Z25<>0,\"r\",\"a\"))","v":""},{"$f":"IF(AND(AA25=0,AL25=0),\"\",IF(AA25<>0,\"r\",\"a\"))","v":""},{"$f":"IF(AND(AB25=0,AM25=0),\"\",IF(AB25<>0,\"r\",\"a\"))","v":""},{"$f":"IF(AND(AC25=0,AN25=0),\"\",IF(AC25<>0,\"r\",\"a\"))","v":""},null,null,null,null,{"$f":"COUNTIF(RegistroRespostas!$H$2:$H$360,F$20&$E25&\"Não\")","v":0},{"$f":"COUNTIF(RegistroRespostas!$H$2:$H$360,G$20&$E25&\"Não\")","v":0},{"$f":"COUNTIF(RegistroRespostas!$H$2:$H$360,H$20&$E25&\"Não\")","v":0},{"$f":"COUNTIF(RegistroRespostas!$H$2:$H$360,I$20&$E25&\"Não\")","v":0},{"$f":"COUNTIF(RegistroRespostas!$H$2:$H$360,J$20&$E25&\"Não\")","v":0},{"$f":"COUNTIF(RegistroRespostas!$H$2:$H$360,K$20&$E25&\"Não\")","v":0},{"$f":"COUNTIF(RegistroRespostas!$H$2:$H$360,L$20&$E25&\"Não\")","v":0},{"$f":"COUNTIF(RegistroRespostas!$H$2:$H$360,M$20&$E25&\"Não\")","v":0},{"$f":"COUNTIF(RegistroRespostas!$H$2:$H$360,N$20&$E25&\"Não\")","v":0},{"$f":"COUNTIF(RegistroRespostas!$H$2:$H$360,O$20&$E25&\"Não\")","v":0},null,{"$f":"COUNTIF(RegistroRespostas!$H$2:$H$171,F$20&$E25&\"Sim\")","v":0},{"$f":"COUNTIF(RegistroRespostas!$H$2:$H$171,G$20&$E25&\"Sim\")","v":0},{"$f":"COUNTIF(RegistroRespostas!$H$2:$H$171,H$20&$E25&\"Sim\")","v":0},{"$f":"COUNTIF(RegistroRespostas!$H$2:$H$171,I$20&$E25&\"Sim\")","v":0},{"$f":"COUNTIF(RegistroRespostas!$H$2:$H$171,J$20&$E25&\"Sim\")","v":0},{"$f":"COUNTIF(RegistroRespostas!$H$2:$H$171,K$20&$E25&\"Sim\")","v":0},{"$f":"COUNTIF(RegistroRespostas!$H$2:$H$171,L$20&$E25&\"Sim\")","v":0},{"$f":"COUNTIF(RegistroRespostas!$H$2:$H$171,M$20&$E25&\"Sim\")","v":0},{"$f":"COUNTIF(RegistroRespostas!$H$2:$H$171,N$20&$E25&\"Sim\")","v":0},{"$f":"COUNTIF(RegistroRespostas!$H$2:$H$171,O$20&$E25&\"Sim\")","v":0}]
[null,null,null,null,"B.2 - Maturidade do Design",{"$f":"IF(AND(T26=0,AE26=0),\"\",IF(T26<>0,\"r\",\"a\"))","v":""},"","","","","","","","","",null,null,null,null,{"$f":"COUNTIF(RegistroRespostas!$H$2:$H$360,F$20&$E26&\"Não\")","v":0},{"$f":"COUNTIF(RegistroRespostas!$H$2:$H$360,G$20&$E26&\"Não\")","v":0},{"$f":"COUNTIF(RegistroRespostas!$H$2:$H$360,H$20&$E26&\"Não\")","v":0},{"$f":"COUNTIF(RegistroRespostas!$H$2:$H$360,I$20&$E26&\"Não\")","v":0},{"$f":"COUNTIF(RegistroRespostas!$H$2:$H$360,J$20&$E26&\"Não\")","v":0},{"$f":"COUNTIF(RegistroRespostas!$H$2:$H$360,K$20&$E26&\"Não\")","v":0},{"$f":"COUNTIF(RegistroRespostas!$H$2:$H$360,L$20&$E26&\"Não\")","v":0},{"$f":"COUNTIF(RegistroRespostas!$H$2:$H$360,M$20&$E26&\"Não\")","v":0},{"$f":"COUNTIF(RegistroRespostas!$H$2:$H$360,N$20&$E26&\"Não\")","v":0},{"$f":"COUNTIF(RegistroRespostas!$H$2:$H$360,O$20&$E26&\"Não\")","v":0},null,{"$f":"COUNTIF(RegistroRespostas!$H$2:$H$171,F$20&$E26&\"Sim\")","v":0},{"$f":"COUNTIF(RegistroRespostas!$H$2:$H$171,G$20&$E26&\"Sim\")","v":0},{"$f":"COUNTIF(RegistroRespostas!$H$2:$H$171,H$20&$E26&\"Sim\")","v":0},{"$f":"COUNTIF(RegistroRespostas!$H$2:$H$171,I$20&$E26&\"Sim\")","v":0},{"$f":"COUNTIF(RegistroRespostas!$H$2:$H$171,J$20&$E26&\"Sim\")","v":0},{"$f":"COUNTIF(RegistroRespostas!$H$2:$H$171,K$20&$E26&\"Sim\")","v":0},{"$f":"COUNTIF(RegistroRespostas!$H$2:$H$171,L$20&$E26&\"Sim\")","v":0},{"$f":"COUNTIF(RegistroRespostas!$H$2:$H$171,M$20&$E26&\"Sim\")","v":0},{"$f":"COUNTIF(RegistroRespostas!$H$2:$H$171,N$20&$E26&\"Sim\")","v":0},{"$f":"COUNTIF(RegistroRespostas!$H$2:$H$171,O$20&$E26&\"Sim\")","v":0}]
[null,null,null,null,"C - Custo e Recursos Financeiros",{"$f":"IF(OR(F28=\"r\",F29=\"r\",F30=\"r\"),\"r\",IF(OR(F28=\"a\",F29=\"a\",F30=\"a\"),\"a\",\"\"))","v":""},{"$f":"IF(OR(G28=\"r\",G29=\"r\",G30=\"r\"),\"r\",IF(OR(G28=\"a\",G29=\"a\",G30=\"a\"),\"a\",\"\"))","v":""},"","","","","","","",""]
[null,null,null,null,"C.1 - Conhecimento do Custo de Produção",{"$f":"IF(AND(T28=0,AE28=0),\"\",IF(T28<>0,\"r\",\"a\"))","v":""},{"$f":"IF(AND(U28=0,AF28=0),\"\",IF(U28<>0,\"r\",\"a\"))","v":""},{"$f":"IF(AND(V28=0,AG28=0),\"\",IF(V28<>0,\"r\",\"a\"))","v":""},{"$f":"IF(AND(W28=0,AH28=0),\"\",IF(W28<>0,\"r\",\"a\"))","v":""},{"$f":"IF(AND(X28=0,AI28=0),\"\",IF(X28<>0,\"r\",\"a\"))","v":""},{"$f":"IF(AND(Y28=0,AJ28=0),\"\",IF(Y28<>0,\"r\",\"a\"))","v":""},{"$f":"IF(AND(Z28=0,AK28=0),\"\",IF(Z28<>0,\"r\",\"a\"))","v":""},{"$f":"IF(AND(AA28=0,AL28=0),\"\",IF(AA28<>0,\"r\",\"a\"))","v":""},{"$f":"IF(AND(AB28=0,AM28=0),\"\",IF(AB28<>0,\"r\",\"a\"))","v":""},{"$f":"IF(AND(AC28=0,AN28=0),\"\",IF(AC28<>0,\"r\",\"a\"))","v":""},null,null,null,null,{"$f":"COUNTIF(RegistroRespostas!$H$2:$H$360,F$20&$E28&\"Não\")","v":0},{"$f":"COUNTIF(RegistroRespostas!$H$2:$H$360,G$20&$E28&\"Não\")","v":0},{"$f":"COUNTIF(RegistroRespostas!$H$2:$H$360,H$20&$E28&\"Não\")","v":0},{"$f":"COUNTIF(RegistroRespostas!$H$2:$H$360,I$20&$E28&\"Não\")","v":0},{"$f":"COUNTIF(RegistroRespostas!$H$2:$H$360,J$20&$E28&\"Não\")","v":0},{"$f":"COUNTIF(RegistroRespostas!$H$2:$H$360,K$20&$E28&\"Não\")","v":0},{"$f":"COUNTIF(RegistroRespostas!$H$2:$H$360,L$20&$E28&\"Não\")","v":0},{"$f":"COUNTIF(RegistroRespostas!$H$2:$H$360,M$20&$E28&\"Não\")","v":0},{"$f":"COUNTIF(RegistroRespostas!$H$2:$H$360,N$20&$E28&\"Não\")","v":0},{"$f":"COUNTIF(RegistroRespostas!$H$2:$H$360,O$20&$E28&\"Não\")","v":0},null,{"$f":"COUNTIF(RegistroRespostas!$H$2:$H$171,F$20&$E28&\"Sim\")","v":0},{"$f":"COUNTIF(RegistroRespostas!$H$2:$H$171,G$20&$E28&\"Sim\")","v":0},{"$f":"COUNTIF(RegistroRespostas!$H$2:$H$171,H$20&$E28&\"Sim\")","v":0},{"$f":"COUNTIF(RegistroRespostas!$H$2:$H$171,I$20&$E28&\"Sim\")","v":0},{"$f":"COUNTIF(RegistroRespostas!$H$2:$H$171,J$20&$E28&\"Sim\")","v":0},{"$f":"COUNTIF(RegistroRespostas!$H$2:$H$171,K$20&$E28&\"Sim\")","v":0},{"$f":"COUNTIF(RegistroRespostas!$H$2:$H$171,L$20&$E28&\"Sim\")","v":0},{"$f":"COUNTIF(RegistroRespostas!$H$2:$H$171,M$20&$E28&\"Sim\")","v":0},{"$f":"COUNTIF(RegistroRespostas!$H$2:$H$171,N$20&$E28&\"Sim\")","v":0},{"$f":"COUNTIF(RegistroRespostas!$H$2:$H$171,O$20&$E28&\"Sim\")","v":0}]
[null,null,null,null,"C.2 - Análise de Custo",{"$f":"IF(AND(T29=0,AE29=0),\"\",IF(T29<>0,\"r\",\"a\"))","v":""},"","","","","","","","","",null,null,null,null,{"$f":"COUNTIF(RegistroRespostas!$H$2:$H$360,F$20&$E29&\"Não\")","v":0},{"$f":"COUNTIF(RegistroRespostas!$H$2:$H$360,G$20&$E29&\"Não\")","v":0},{"$f":"COUNTIF(RegistroRespostas!$H$2:$H$360,H$20&$E29&\"Não\")","v":0},{"$f":"COUNTIF(RegistroRespostas!$H$2:$H$360,I$20&$E29&\"Não\")","v":0},{"$f":"COUNTIF(RegistroRespostas!$H$2:$H$360,J$20&$E29&\"Não\")","v":0},{"$f":"COUNTIF(RegistroRespostas!$H$2:$H$360,K$20&$E29&\"Não\")","v":0},{"$f":"COUNTIF(RegistroRespostas!$H$2:$H$360,L$20&$E29&\"Não\")","v":0},{"$f":"COUNTIF(RegistroRespostas!$H$2:$H$360,M$20&$E29&\"Não\")","v":0},{"$f":"COUNTIF(RegistroRespostas!$H$2:$H$360,N$20&$E29&\"Não\")","v":0},{"$f":"COUNTIF(RegistroRespostas!$H$2:$H$360,O$20&$E29&\"Não\")","v":0},null,{"$f":"COUNTIF(RegistroRespostas!$H$2:$H$171,F$20&$E29&\"Sim\")","v":0},{"$f":"COUNTIF(RegistroRespostas!$H$2:$H$171,G$20&$E29&\"Sim\")","v":0},{"$f":"COUNTIF(RegistroRespostas!$H$2:$H$171,H$20&$E29&\"Sim\")","v":0},{"$f":"COUNTIF(RegistroRespostas!$H$2:$H$171,I$20&$E29&\"Sim\")","v":0},{"$f":"COUNTIF(RegistroRespostas!$H$2:$H$171,J$20&$E29&\"Sim\")","v":0},{"$f":"COUNTIF(RegistroRespostas!$H$2:$H$171,K$20&$E29&\"Sim\")","v":0},{"$f":"COUNTIF(RegistroRespostas!$H$2:$H$171,L$20&$E29&\"Sim\")","v":0},{"$f":"COUNTIF(RegistroRespostas!$H$2:$H$171,M$20&$E29&\"Sim\")","v":0},{"$f":"COUNTIF(RegistroRespostas!$H$2:$H$171,N$20&$E29&\"Sim\")","v":0},{"$f":"COUNTIF(RegistroRespostas!$H$2:$H$171,O$20&$E29&\"Sim\")","v":0}]
[null,null,null,null,"C.3 - Orçamento e Investimento para Fabricação",{"$f":"IF(AND(T30=0,AE30=0),\"\",IF(T30<>0,\"r\",\"a\"))","v":""},"","","","","","","","","",null,null,null,null,{"$f":"COUNTIF(RegistroRespostas!$H$2:$H$360,F$20&$E30&\"Não\")","v":0},{"$f":"COUNTIF(RegistroRespostas!$H$2:$H$360,G$20&$E30&\"Não\")","v":0},{"$f":"COUNTIF(RegistroRespostas!$H$2:$H$360,H$20&$E30&\"Não\")","v":0},{"$f":"COUNTIF(RegistroRespostas!$H$2:$H$360,I$20&$E30&\"Não\")","v":0},{"$f":"COUNTIF(RegistroRespostas!$H$2:$H$360,J$20&$E30&\"Não\")","v":0},{"$f":"COUNTIF(RegistroRespostas!$H$2:$H$360,K$20&$E30&\"Não\")","v":0},{"$f":"COUNTIF(RegistroRespostas!$H$2:$H$360,L$20&$E30&\"Não\")","v":0},{"$f":"COUNTIF(RegistroRespostas!$H$2:$H$360,M$20&$E30&\"Não\")","v":0},{"$f":"COUNTIF(RegistroRespostas!$H$2:$H$360,N$20&$E30&\"Não\")","v":0},{"$f":"COUNTIF(RegistroRespostas!$H$2:$H$360,O$20&$E30&\"Não\")","v":0},null,{"$f":"COUNTIF(RegistroRespostas!$H$2:$H$171,F$20&$E30&\"Sim\")","v":0},{"$f":"COUNTIF(RegistroRespostas!$H$2:$H$171,G$20&$E30&\"Sim\")","v":0},{"$f":"COUNTIF(RegistroRespostas!$H$2:$H$171,H$20&$E30&\"Sim\")","v":0},{"$f":"COUNTIF(RegistroRespostas!$H$2:$H$171,I$20&$E30&\"Sim\")","v":0},{"$f":"COUNTIF(RegistroRespostas!$H$2:$H$171,J$20&$E30&\"Sim\")","v":0},{"$f":"COUNTIF(RegistroRespostas!$H$2:$H$171,K$20&$E30&\"Sim\")","v":0},{"$f":"COUNTIF(RegistroRespostas!$H$2:$H$171,L$20&$E30&\"Sim\")","v":0},{"$f":"COUNTIF(RegistroRespostas!$H$2:$H$171,M$20&$E30&\"Sim\")","v":0},{"$f":"COUNTIF(RegistroRespostas!$H$2:$H$171,N$20&$E30&\"Sim\")","v":0},{"$f":"COUNTIF(RegistroRespostas!$H$2:$H$171,O$20&$E30&\"Sim\")","v":0}]
[null,null,null,null,"D - Materiais",{"$f":"IF(OR(F32=\"r\",F33=\"r\",F34=\"r\",F35=\"r\"),\"r\",IF(OR(F32=\"a\",F33=\"a\",F34=\"a\",F35=\"a\"),\"a\",\"\"))","v":""},{"$f":"IF(OR(G32=\"r\",G33=\"r\",G34=\"r\",G35=\"r\"),\"r\",IF(OR(G32=\"a\",G33=\"a\",G34=\"a\",G35=\"a\"),\"a\",\"\"))","v":""},"","","","","","","",""]
[null,null,null,null,"D.1 - Maturidade dos Materiais",{"$f":"IF(AND(T32=0,AE32=0),\"\",IF(T32<>0,\"r\",\"a\"))","v":""},{"$f":"IF(AND(U32=0,AF32=0),\"\",IF(U32<>0,\"r\",\"a\"))","v":""},{"$f":"IF(AND(V32=0,AG32=0),\"\",IF(V32<>0,\"r\",\"a\"))","v":""},{"$f":"IF(AND(W32=0,AH32=0),\"\",IF(W32<>0,\"r\",\"a\"))","v":""},{"$f":"IF(AND(X32=0,AI32=0),\"\",IF(X32<>0,\"r\",\"a\"))","v":""},{"$f":"IF(AND(Y32=0,AJ32=0),\"\",IF(Y32<>0,\"r\",\"a\"))","v":""},{"$f":"IF(AND(Z32=0,AK32=0),\"\",IF(Z32<>0,\"r\",\"a\"))","v":""},{"$f":"IF(AND(AA32=0,AL32=0),\"\",IF(AA32<>0,\"r\",\"a\"))","v":""},{"$f":"IF(AND(AB32=0,AM32=0),\"\",IF(AB32<>0,\"r\",\"a\"))","v":""},{"$f":"IF(AND(AC32=0,AN32=0),\"\",IF(AC32<>0,\"r\",\"a\"))","v":""},null,null,null,null,{"$f":"COUNTIF(RegistroRespostas!$H$2:$H$360,F$20&$E32&\"Não\")","v":0},{"$f":"COUNTIF(RegistroRespostas!$H$2:$H$360,G$20&$E32&\"Não\")","v":0},{"$f":"COUNTIF(RegistroRespostas!$H$2:$H$360,H$20&$E32&\"Não\")","v":0},{"$f":"COUNTIF(RegistroRespostas!$H$2:$H$360,I$20&$E32&\"Não\")","v":0},{"$f":"COUNTIF(RegistroRespostas!$H$2:$H$360,J$20&$E32&\"Não\")","v":0},{"$f":"COUNTIF(RegistroRespostas!$H$2:$H$360,K$20&$E32&\"Não\")","v":0},{"$f":"COUNTIF(RegistroRespostas!$H$2:$H$360,L$20&$E32&\"Não\")","v":0},{"$f":"COUNTIF(RegistroRespostas!$H$2:$H$360,M$20&$E32&\"Não\")","v":0},{"$f":"COUNTIF(RegistroRespostas!$H$2:$H$360,N$20&$E32&\"Não\")","v":0},{"$f":"COUNTIF(RegistroRespostas!$H$2:$H$360,O$20&$E32&\"Não\")","v":0},null,{"$f":"COUNTIF(RegistroRespostas!$H$2:$H$171,F$20&$E32&\"Sim\")","v":0},{"$f":"COUNTIF(RegistroRespostas!$H$2:$H$171,G$20&$E32&\"Sim\")","v":0},{"$f":"COUNTIF(RegistroRespostas!$H$2:$H$171,H$20&$E32&\"Sim\")","v":0},{"$f":"COUNTIF(RegistroRespostas!$H$2:$H$171,I$20&$E32&\"Sim\")","v":0},{"$f":"COUNTIF(RegistroRespostas!$H$2:$H$171,J$20&$E32&\"Sim\")","v":0},{"$f":"COUNTIF(RegistroRespostas!$H$2:$H$171,K$20&$E32&\"Sim\")","v":0},{"$f":"COUNTIF(RegistroRespostas!$H$2:$H$171,L$20&$E32&\"Sim\")","v":0},{"$f":"COUNTIF(RegistroRespostas!$H$2:$H$171,M$20&$E32&\"Sim\")","v":0},{"$f":"COUNTIF(RegistroRespostas!$H$2:$H$171,N$20&$E32&\"Sim\")","v":0},{"$f":"COUNTIF(RegistroRespostas!$H$2:$H$171,O$20&$E32&\"Sim\")","v":0}]
[null,null,null,null,"D.2 - Disponibilidade",{"$f":"IF(AND(T33=0,AE33=0),\"\",IF(T33<>0,\"r\",\"a\"))","v":""},"","","","","","","","","",null,null,null,null,{"$f":"COUNTIF(RegistroRespostas!$H$2:$H$360,F$20&$E33&\"Não\")","v":0},{"$f":"COUNTIF(RegistroRespostas!$H$2:$H$360,G$20&$E33&\"Não\")","v":0},{"$f":"COUNTIF(RegistroRespostas!$H$2:$H$360,H$20&$E33&\"Não\")","v":0},{"$f":"COUNTIF(RegistroRespostas!$H$2:$H$360,I$20&$E33&\"Não\")","v":0},{"$f":"COUNTIF(RegistroRespostas!$H$2:$H$360,J$20&$E33&\"Não\")","v":0},{"$f":"COUNTIF(RegistroRespostas!$H$2:$H$360,K$20&$E33&\"Não\")","v":0},{"$f":"COUNTIF(RegistroRespostas!$H$2:$H$360,L$20&$E33&\"Não\")","v":0},{"$f":"COUNTIF(RegistroRespostas!$H$2:$H$360,M$20&$E33&\"Não\")","v":0},{"$f":"COUNTIF(RegistroRespostas!$H$2:$H$360,N$20&$E33&\"Não\")","v":0},{"$f":"COUNTIF(RegistroRespostas!$H$2:$H$360,O$20&$E33&\"Não\")","v":0},null,{"$f":"COUNTIF(RegistroRespostas!$H$2:$H$171,F$20&$E33&\"Sim\")","v":0},{"$f":"COUNTIF(RegistroRespostas!$H$2:$H$171,G$20&$E33&\"Sim\")","v":0},{"$f":"COUNTIF(RegistroRespostas!$H$2:$H$171,H$20&$E33&\"Sim\")","v":0},{"$f":"COUNTIF(RegistroRespostas!$H$2:$H$171,I$20&$E33&\"Sim\")","v":0},{"$f":"COUNTIF(RegistroRespostas!$H$2:$H$171,J$20&$E33&\"Sim\")","v":0},{"$f":"COUNTIF(RegistroRespostas!$H$2:$H$171,K$20&$E33&\"Sim\")","v":0},{"$f":"COUNTIF(RegistroRespostas!$H$2:$H$171,L$20&$E33&\"Sim\")","v":0},{"$f":"COUNTIF(RegistroRespostas!$H$2:$H$171,M$20&$E33&\"Sim\")","v":0},{"$f":"COUNTIF(RegistroRespostas!$H$2:$H$171,N$20&$E33&\"Sim\")","v":0},{"$f":"COUNTIF(RegistroRespostas!$H$2:$H$171,O$20&$E33&\"Sim\")","v":0}]
[null,null,null,null,"D.3 - Gestão da Cadeia de Suprimentos",{"$f":"IF(AND(T34=0,AE34=0),\"\",IF(T34<>0,\"r\",\"a\"))","v":""},"","","","","","","","","",null,null,null,null,{"$f":"COUNTIF(RegistroRespostas!$H$2:$H$360,F$20&$E34&\"Não\")","v":0},{"$f":"COUNTIF(RegistroRespostas!$H$2:$H$360,G$20&$E34&\"Não\")","v":0},{"$f":"COUNTIF(RegistroRespostas!$H$2:$H$360,H$20&$E34&\"Não\")","v":0},{"$f":"COUNTIF(RegistroRespostas!$H$2:$H$360,I$20&$E34&\"Não\")","v":0},{"$f":"COUNTIF(RegistroRespostas!$H$2:$H$360,J$20&$E34&\"Não\")","v":0},{"$f":"COUNTIF(RegistroRespostas!$H$2:$H$360,K$20&$E34&\"Não\")","v":0},{"$f":"COUNTIF(RegistroRespostas!$H$2:$H$360,L$20&$E34&\"Não\")","v":0},{"$f":"COUNTIF(RegistroRespostas!$H$2:$H$360,M$20&$E34&\"Não\")","v":0},{"$f":"COUNTIF(RegistroRespostas!$H$2:$H$360,N$20&$E34&\"Não\")","v":0},{"$f":"COUNTIF(RegistroRespostas!$H$2:$H$360,O$20&$E34&\"Não\")","v":0},null,{"$f":"COUNTIF(RegistroRespostas!$H$2:$H$171,F$20&$E34&\"Sim\")","v":0},{"$f":"COUNTIF(RegistroRespostas!$H$2:$H$171,G$20&$E34&\"Sim\")","v":0},{"$f":"COUNTIF(RegistroRespostas!$H$2:$H$171,H$20&$E34&\"Sim\")","v":0},{"$f":"COUNTIF(RegistroRespostas!$H$2:$H$171,I$20&$E34&\"Sim\")","v":0},{"$f":"COUNTIF(RegistroRespostas!$H$2:$H$171,J$20&$E34&\"Sim\")","v":0},{"$f":"COUNTIF(RegistroRespostas!$H$2:$H$171,K$20&$E34&\"Sim\")","v":0},{"$f":"COUNTIF(RegistroRespostas!$H$2:$H$171,L$20&$E34&\"Sim\")","v":0},{"$f":"COUNTIF(RegistroRespostas!$H$2:$H$171,M$20&$E34&\"Sim\")","v":0},{"$f":"COUNTIF(RegistroRespostas!$H$2:$H$171,N$20&$E34&\"Sim\")","v":0},{"$f":"COUNTIF(RegistroRespostas!$H$2:$H$171,O$20&$E34&\"Sim\")","v":0}]
[null,null,null,null,"D.4 - Manuseio Especial",{"$f":"IF(AND(T35=0,AE35=0),\"\",IF(T35<>0,\"r\",\"a\"))","v":""},"","","","","","","","","",null,null,null,null,{"$f":"COUNTIF(RegistroRespostas!$H$2:$H$360,F$20&$E35&\"Não\")","v":0},{"$f":"COUNTIF(RegistroRespostas!$H$2:$H$360,G$20&$E35&\"Não\")","v":0},{"$f":"COUNTIF(RegistroRespostas!$H$2:$H$360,H$20&$E35&\"Não\")","v":0},{"$f":"COUNTIF(RegistroRespostas!$H$2:$H$360,I$20&$E35&\"Não\")","v":0},{"$f":"COUNTIF(RegistroRespostas!$H$2:$H$360,J$20&$E35&\"Não\")","v":0},{"$f":"COUNTIF(RegistroRespostas!$H$2:$H$360,K$20&$E35&\"Não\")","v":0},{"$f":"COUNTIF(RegistroRespostas!$H$2:$H$360,L$20&$E35&\"Não\")","v":0},{"$f":"COUNTIF(RegistroRespostas!$H$2:$H$360,M$20&$E35&\"Não\")","v":0},{"$f":"COUNTIF(RegistroRespostas!$H$2:$H$360,N$20&$E35&\"Não\")","v":0},{"$f":"COUNTIF(RegistroRespostas!$H$2:$H$360,O$20&$E35&\"Não\")","v":0},null,{"$f":"COUNTIF(RegistroRespostas!$H$2:$H$171,F$20&$E35&\"Sim\")","v":0},{"$f":"COUNTIF(RegistroRespostas!$H$2:$H$171,G$20&$E35&\"Sim\")","v":0},{"$f":"COUNTIF(RegistroRespostas!$H$2:$H$171,H$20&$E35&\"Sim\")","v":0},{"$f":"COUNTIF(RegistroRespostas!$H$2:$H$171,I$20&$E35&\"Sim\")","v":0},{"$f":"COUNTIF(RegistroRespostas!$H$2:$H$171,J$20&$E35&\"Sim\")","v":0},{"$f":"COUNTIF(RegistroRespostas!$H$2:$H$171,K$20&$E35&\"Sim\")","v":0},{"$f":"COUNTIF(RegistroRespostas!$H$2:$H$171,L$20&$E35&\"Sim\")","v":0},{"$f":"COUNTIF(RegistroRespostas!$H$2:$H$171,M$20&$E35&\"Sim\")","v":0},{"$f":"COUNTIF(RegistroRespostas!$H$2:$H$171,N$20&$E35&\"Sim\")","v":0},{"$f":"COUNTIF(RegistroRespostas!$H$2:$H$171,O$20&$E35&\"Sim\")","v":0}]
[null,null,null,null,"E - Capabilidade e Controle do Processo",{"$f":"IF(OR(F37=\"r\",F38=\"r\"),\"r\",IF(OR(F37=\"a\",F38=\"a\"),\"a\",\"\"))","v":""},{"$f":"IF(OR(G37=\"r\",G38=\"r\"),\"r\",IF(OR(G37=\"a\",G38=\"a\"),\"a\",\"\"))","v":""},{"$f":"IF(OR(H37=\"r\",H38=\"r\"),\"r\",IF(OR(H37=\"a\",H38=\"a\"),\"a\",\"\"))","v":""},{"$f":"IF(OR(I37=\"r\",I38=\"r\"),\"r\",IF(OR(I37=\"a\",I38=\"a\"),\"a\",\"\"))","v":""},{"$f":"IF(OR(J37=\"r\",J38=\"r\"),\"r\",IF(OR(J37=\"a\",J38=\"a\"),\"a\",\"\"))","v":""},{"$f":"IF(OR(K37=\"r\",K38=\"r\"),\"r\",IF(OR(K37=\"a\",K38=\"a\"),\"a\",\"\"))","v":""},{"$f":"IF(OR(L37=\"r\",L38=\"r\"),\"r\",IF(OR(L37=\"a\",L38=\"a\"),\"a\",\"\"))","v":""},{"$f":"IF(OR(M37=\"r\",M38=\"r\"),\"r\",IF(OR(M37=\"a\",M38=\"a\"),\"a\",\"\"))","v":""},{"$f":"IF(OR(N37=\"r\",N38=\"r\"),\"r\",IF(OR(N37=\"a\",N38=\"a\"),\"a\",\"\"))","v":""},{"$f":"IF(OR(O37=\"r\",O38=\"r\"),\"r\",IF(OR(O37=\"a\",O38=\"a\"),\"a\",\"\"))","v":""}]
[null,null,null,null,"E.1 - Modelamento e Simulação",{"$f":"IF(AND(T37=0,AE37=0),\"\",IF(T37<>0,\"r\",\"a\"))","v":""},{"$f":"IF(AND(U37=0,AF37=0),\"\",IF(U37<>0,\"r\",\"a\"))","v":""},{"$f":"IF(AND(V37=0,AG37=0),\"\",IF(V37<>0,\"r\",\"a\"))","v":""},{"$f":"IF(AND(W37=0,AH37=0),\"\",IF(W37<>0,\"r\",\"a\"))","v":""},{"$f":"IF(AND(X37=0,AI37=0),\"\",IF(X37<>0,\"r\",\"a\"))","v":""},{"$f":"IF(AND(Y37=0,AJ37=0),\"\",IF(Y37<>0,\"r\",\"a\"))","v":""},{"$f":"IF(AND(Z37=0,AK37=0),\"\",IF(Z37<>0,\"r\",\"a\"))","v":""},{"$f":"IF(AND(AA37=0,AL37=0),\"\",IF(AA37<>0,\"r\",\"a\"))","v":""},{"$f":"IF(AND(AB37=0,AM37=0),\"\",IF(AB37<>0,\"r\",\"a\"))","v":""},{"$f":"IF(AND(AC37=0,AN37=0),\"\",IF(AC37<>0,\"r\",\"a\"))","v":""},null,null,null,null,{"$f":"COUNTIF(RegistroRespostas!$H$2:$H$360,F$20&$E37&\"Não\")","v":0},{"$f":"COUNTIF(RegistroRespostas!$H$2:$H$360,G$20&$E37&\"Não\")","v":0},{"$f":"COUNTIF(RegistroRespostas!$H$2:$H$360,H$20&$E37&\"Não\")","v":0},{"$f":"COUNTIF(RegistroRespostas!$H$2:$H$360,I$20&$E37&\"Não\")","v":0},{"$f":"COUNTIF(RegistroRespostas!$H$2:$H$360,J$20&$E37&\"Não\")","v":0},{"$f":"COUNTIF(RegistroRespostas!$H$2:$H$360,K$20&$E37&\"Não\")","v":0},{"$f":"COUNTIF(RegistroRespostas!$H$2:$H$360,L$20&$E37&\"Não\")","v":0},{"$f":"COUNTIF(RegistroRespostas!$H$2:$H$360,M$20&$E37&\"Não\")","v":0},{"$f":"COUNTIF(RegistroRespostas!$H$2:$H$360,N$20&$E37&\"Não\")","v":0},{"$f":"COUNTIF(RegistroRespostas!$H$2:$H$360,O$20&$E37&\"Não\")","v":0},null,{"$f":"COUNTIF(RegistroRespostas!$H$2:$H$171,F$20&$E37&\"Sim\")","v":0},{"$f":"COUNTIF(RegistroRespostas!$H$2:$H$171,G$20&$E37&\"Sim\")","v":0},{"$f":"COUNTIF(RegistroRespostas!$H$2:$H$171,H$20&$E37&\"Sim\")","v":0},{"$f":"COUNTIF(RegistroRespostas!$H$2:$H$171,I$20&$E37&\"Sim\")","v":0},{"$f":"COUNTIF(RegistroRespostas!$H$2:$H$171,J$20&$E37&\"Sim\")","v":0},{"$f":"COUNTIF(RegistroRespostas!$H$2:$H$171,K$20&$E37&\"Sim\")","v":0},{"$f":"COUNTIF(RegistroRespostas!$H$2:$H$171,L$20&$E37&\"Sim\")","v":0},{"$f":"COUNTIF(RegistroRespostas!$H$2:$H$171,M$20&$E37&\"Sim\")","v":0},{"$f":"COUNTIF(RegistroRespostas!$H$2:$H$171,N$20&$E37&\"Sim\")","v":0},{"$f":"COUNTIF(RegistroRespostas!$H$2:$H$171,O$20&$E37&\"Sim\")","v":0}]
[null,null,null,null,"E.2 - Maturidade do Processo de Fabricação ",{"$f":"IF(AND(T38=0,AE38=0),\"\",IF(T38<>0,\"r\",\"a\"))","v":""},"","","","","","","","","",null,null,null,null,{"$f":"COUNTIF(RegistroRespostas!$H$2:$H$360,F$20&$E38&\"Não\")","v":0},{"$f":"COUNTIF(RegistroRespostas!$H$2:$H$360,G$20&$E38&\"Não\")","v":0},{"$f":"COUNTIF(RegistroRespostas!$H$2:$H$360,H$20&$E38&\"Não\")","v":0},{"$f":"COUNTIF(RegistroRespostas!$H$2:$H$360,I$20&$E38&\"Não\")","v":0},{"$f":"COUNTIF(RegistroRespostas!$H$2:$H$360,J$20&$E38&\"Não\")","v":0},{"$f":"COUNTIF(RegistroRespostas!$H$2:$H$360,K$20&$E38&\"Não\")","v":0},{"$f":"COUNTIF(RegistroRespostas!$H$2:$H$360,L$20&$E38&\"Não\")","v":0},{"$f":"COUNTIF(RegistroRespostas!$H$2:$H$360,M$20&$E38&\"Não\")","v":0},{"$f":"COUNTIF(RegistroRespostas!$H$2:$H$360,N$20&$E38&\"Não\")","v":0},{"$f":"COUNTIF(RegistroRespostas!$H$2:$H$360,O$20&$E38&\"Não\")","v":0},null,{"$f":"COUNTIF(RegistroRespostas!$H$2:$H$171,F$20&$E38&\"Sim\")","v":0},{"$f":"COUNTIF(RegistroRespostas!$H$2:$H$171,G$20&$E38&\"Sim\")","v":0},{"$f":"COUNTIF(RegistroRespostas!$H$2:$H$171,H$20&$E38&\"Sim\")","v":0},{"$f":"COUNTIF(RegistroRespostas!$H$2:$H$171,I$20&$E38&\"Sim\")","v":0},{"$f":"COUNTIF(RegistroRespostas!$H$2:$H$171,J$20&$E38&\"Sim\")","v":0},{"$f":"COUNTIF(RegistroRespostas!$H$2:$H$171,K$20&$E38&\"Sim\")","v":0},{"$f":"COUNTIF(RegistroRespostas!$H$2:$H$171,L$20&$E38&\"Sim\")","v":0},{"$f":"COUNTIF(RegistroRespostas!$H$2:$H$171,M$20&$E38&\"Sim\")","v":0},{"$f":"COUNTIF(RegistroRespostas!$H$2:$H$171,N$20&$E38&\"Sim\")","v":0},{"$f":"COUNTIF(RegistroRespostas!$H$2:$H$171,O$20&$E38&\"Sim\")","v":0}]
[null,null,null,null,"F - Gestão da Qualidade",{"$f":"IF(OR(F40=\"r\",F41=\"r\",F42=\"r\"),\"r\",IF(OR(F40=\"a\",F41=\"a\",F42=\"a\"),\"a\",\"\"))","v":""},{"$f":"IF(OR(G40=\"r\",G41=\"r\",G42=\"r\"),\"r\",IF(OR(G40=\"a\",G41=\"a\",G42=\"a\"),\"a\",\"\"))","v":""},{"$f":"IF(OR(H40=\"r\",H41=\"r\",H42=\"r\"),\"r\",IF(OR(H40=\"a\",H41=\"a\",H42=\"a\"),\"a\",\"\"))","v":""},{"$f":"IF(OR(I40=\"r\",I41=\"r\",I42=\"r\"),\"r\",IF(OR(I40=\"a\",I41=\"a\",I42=\"a\"),\"a\",\"\"))","v":""},{"$f":"IF(OR(J40=\"r\",J41=\"r\",J42=\"r\"),\"r\",IF(OR(J40=\"a\",J41=\"a\",J42=\"a\"),\"a\",\"\"))","v":""},{"$f":"IF(OR(K40=\"r\",K41=\"r\",K42=\"r\"),\"r\",IF(OR(K40=\"a\",K41=\"a\",K42=\"a\"),\"a\",\"\"))","v":""},{"$f":"IF(OR(L40=\"r\",L41=\"r\",L42=\"r\"),\"r\",IF(OR(L40=\"a\",L41=\"a\",L42=\"a\"),\"a\",\"\"))","v":""},{"$f":"IF(OR(M40=\"r\",M41=\"r\",M42=\"r\"),\"r\",IF(OR(M40=\"a\",M41=\"a\",M42=\"a\"),\"a\",\"\"))","v":""},{"$f":"IF(OR(N40=\"r\",N41=\"r\",N42=\"r\"),\"r\",IF(OR(N40=\"a\",N41=\"a\",N42=\"a\"),\"a\",\"\"))","v":""},{"$f":"IF(OR(O40=\"r\",O41=\"r\",O42=\"r\"),\"r\",IF(OR(O40=\"a\",O41=\"a\",O42=\"a\"),\"a\",\"\"))","v":""}]
[null,null,null,null,"F.1 - Sistema de Festão de Qualidade ",{"$f":"IF(AND(T40=0,AE40=0),\"\",IF(T40<>0,\"r\",\"a\"))","v":""},{"$f":"IF(AND(U40=0,AF40=0),\"\",IF(U40<>0,\"r\",\"a\"))","v":""},{"$f":"IF(AND(V40=0,AG40=0),\"\",IF(V40<>0,\"r\",\"a\"))","v":""},{"$f":"IF(AND(W40=0,AH40=0),\"\",IF(W40<>0,\"r\",\"a\"))","v":""},{"$f":"IF(AND(X40=0,AI40=0),\"\",IF(X40<>0,\"r\",\"a\"))","v":""},{"$f":"IF(AND(Y40=0,AJ40=0),\"\",IF(Y40<>0,\"r\",\"a\"))","v":""},{"$f":"IF(AND(Z40=0,AK40=0),\"\",IF(Z40<>0,\"r\",\"a\"))","v":""},{"$f":"IF(AND(AA40=0,AL40=0),\"\",IF(AA40<>0,\"r\",\"a\"))","v":""},{"$f":"IF(AND(AB40=0,AM40=0),\"\",IF(AB40<>0,\"r\",\"a\"))","v":""},{"$f":"IF(AND(AC40=0,AN40=0),\"\",IF(AC40<>0,\"r\",\"a\"))","v":""},null,null,null,null,{"$f":"COUNTIF(RegistroRespostas!$H$2:$H$360,F$20&$E40&\"Não\")","v":0},{"$f":"COUNTIF(RegistroRespostas!$H$2:$H$360,G$20&$E40&\"Não\")","v":0},{"$f":"COUNTIF(RegistroRespostas!$H$2:$H$360,H$20&$E40&\"Não\")","v":0},{"$f":"COUNTIF(RegistroRespostas!$H$2:$H$360,I$20&$E40&\"Não\")","v":0},{"$f":"COUNTIF(RegistroRespostas!$H$2:$H$360,J$20&$E40&\"Não\")","v":0},{"$f":"COUNTIF(RegistroRespostas!$H$2:$H$360,K$20&$E40&\"Não\")","v":0},{"$f":"COUNTIF(RegistroRespostas!$H$2:$H$360,L$20&$E40&\"Não\")","v":0},{"$f":"COUNTIF(RegistroRespostas!$H$2:$H$360,M$20&$E40&\"Não\")","v":0},{"$f":"COUNTIF(RegistroRespostas!$H$2:$H$360,N$20&$E40&\"Não\")","v":0},{"$f":"COUNTIF(RegistroRespostas!$H$2:$H$360,O$20&$E40&\"Não\")","v":0},null,{"$f":"COUNTIF(RegistroRespostas!$H$2:$H$171,F$20&$E40&\"Sim\")","v":0},{"$f":"COUNTIF(RegistroRespostas!$H$2:$H$171,G$20&$E40&\"Sim\")","v":0},{"$f":"COUNTIF(RegistroRespostas!$H$2:$H$171,H$20&$E40&\"Sim\")","v":0},{"$f":"COUNTIF(RegistroRespostas!$H$2:$H$171,I$20&$E40&\"Sim\")","v":0},{"$f":"COUNTIF(RegistroRespostas!$H$2:$H$171,J$20&$E40&\"Sim\")","v":0},{"$f":"COUNTIF(RegistroRespostas!$H$2:$H$171,K$20&$E40&\"Sim\")","v":0},{"$f":"COUNTIF(RegistroRespostas!$H$2:$H$171,L$20&$E40&\"Sim\")","v":0},{"$f":"COUNTIF(RegistroRespostas!$H$2:$H$171,M$20&$E40&\"Sim\")","v":0},{"$f":"COUNTIF(RegistroRespostas!$H$2:$H$171,N$20&$E40&\"Sim\")","v":0},{"$f":"COUNTIF(RegistroRespostas!$H$2:$H$171,O$20&$E40&\"Sim\")","v":0}]
[null,null,null,null,"F.2 - Qualidade do Produto",{"$f":"IF(AND(T41=0,AE41=0),\"\",IF(T41<>0,\"r\",\"a\"))","v":""},"","","","","","","","","",null,null,null,null,{"$f":"COUNTIF(RegistroRespostas!$H$2:$H$360,F$20&$E41&\"Não\")","v":0},{"$f":"COUNTIF(RegistroRespostas!$H$2:$H$360,G$20&$E41&\"Não\")","v":0},{"$f":"COUNTIF(RegistroRespostas!$H$2:$H$360,H$20&$E41&\"Não\")","v":0},{"$f":"COUNTIF(RegistroRespostas!$H$2:$H$360,I$20&$E41&\"Não\")","v":0},{"$f":"COUNTIF(RegistroRespostas!$H$2:$H$360,J$20&$E41&\"Não\")","v":0},{"$f":"COUNTIF(RegistroRespostas!$H$2:$H$360,K$20&$E41&\"Não\")","v":0},{"$f":"COUNTIF(RegistroRespostas!$H$2:$H$360,L$20&$E41&\"Não\")","v":0},{"$f":"COUNTIF(RegistroRespostas!$H$2:$H$360,M$20&$E41&\"Não\")","v":0},{"$f":"COUNTIF(RegistroRespostas!$H$2:$H$360,N$20&$E41&\"Não\")","v":0},{"$f":"COUNTIF(RegistroRespostas!$H$2:$H$360,O$20&$E41&\"Não\")","v":0},null,{"$f":"COUNTIF(RegistroRespostas!$H$2:$H$171,F$20&$E41&\"Sim\")","v":0},{"$f":"COUNTIF(RegistroRespostas!$H$2:$H$171,G$20&$E41&\"Sim\")","v":0},{"$f":"COUNTIF(RegistroRespostas!$H$2:$H$171,H$20&$E41&\"Sim\")","v":0},{"$f":"COUNTIF(RegistroRespostas!$H$2:$H$171,I$20&$E41&\"Sim\")","v":0},{"$f":"COUNTIF(RegistroRespostas!$H$2:$H$171,J$20&$E41&\"Sim\")","v":0},{"$f":"COUNTIF(RegistroRespostas!$H$2:$H$171,K$20&$E41&\"Sim\")","v":0},{"$f":"COUNTIF(RegistroRespostas!$H$2:$H$171,L$20&$E41&\"Sim\")","v":0},{"$f":"COUNTIF(RegistroRespostas!$H$2:$H$171,M$20&$E41&\"Sim\")","v":0},{"$f":"COUNTIF(RegistroRespostas!$H$2:$H$171,N$20&$E41&\"Sim\")","v":0},{"$f":"COUNTIF(RegistroRespostas!$H$2:$H$171,O$20&$E41&\"Sim\")","v":0}]
[null,null,null,null,"F.3 - Gestão da Qualidade do Fornecedor ",{"$f":"IF(AND(T42=0,AE42=0),\"\",IF(T42<>0,\"r\",\"a\"))","v":""},"","","","","","","","","",null,null,null,null,{"$f":"COUNTIF(RegistroRespostas!$H$2:$H$360,F$20&$E42&\"Não\")","v":0},{"$f":"COUNTIF(RegistroRespostas!$H$2:$H$360,G$20&$E42&\"Não\")","v":0},{"$f":"COUNTIF(RegistroRespostas!$H$2:$H$360,H$20&$E42&\"Não\")","v":0},{"$f":"COUNTIF(RegistroRespostas!$H$2:$H$360,I$20&$E42&\"Não\")","v":0},{"$f":"COUNTIF(RegistroRespostas!$H$2:$H$360,J$20&$E42&\"Não\")","v":0},{"$f":"COUNTIF(RegistroRespostas!$H$2:$H$360,K$20&$E42&\"Não\")","v":0},{"$f":"COUNTIF(RegistroRespostas!$H$2:$H$360,L$20&$E42&\"Não\")","v":0},{"$f":"COUNTIF(RegistroRespostas!$H$2:$H$360,M$20&$E42&\"Não\")","v":0},{"$f":"COUNTIF(RegistroRespostas!$H$2:$H$360,N$20&$E42&\"Não\")","v":0},{"$f":"COUNTIF(RegistroRespostas!$H$2:$H$360,O$20&$E42&\"Não\")","v":0},null,{"$f":"COUNTIF(RegistroRespostas!$H$2:$H$171,F$20&$E42&\"Sim\")","v":0},{"$f":"COUNTIF(RegistroRespostas!$H$2:$H$171,G$20&$E42&\"Sim\")","v":0},{"$f":"COUNTIF(RegistroRespostas!$H$2:$H$171,H$20&$E42&\"Sim\")","v":0},{"$f":"COUNTIF(RegistroRespostas!$H$2:$H$171,I$20&$E42&\"Sim\")","v":0},{"$f":"COUNTIF(RegistroRespostas!$H$2:$H$171,J$20&$E42&\"Sim\")","v":0},{"$f":"COUNTIF(RegistroRespostas!$H$2:$H$171,K$20&$E42&\"Sim\")","v":0},{"$f":"COUNTIF(RegistroRespostas!$H$2:$H$171,L$20&$E42&\"Sim\")","v":0},{"$f":"COUNTIF(RegistroRespostas!$H$2:$H$171,M$20&$E42&\"Sim\")","v":0},{"$f":"COUNTIF(RegistroRespostas!$H$2:$H$171,N$20&$E42&\"Sim\")","v":0},{"$f":"COUNTIF(RegistroRespostas!$H$2:$H$171,O$20&$E42&\"Sim\")","v":0}]
[null,null,null,null,"G - Pessoas",{"$f":"IF(AND(T43=0,AE43=0),\"\",IF(T43<>0,\"r\",\"a\"))","v":""},"","","","","","","","","",null,null,null,null,{"$f":"COUNTIF(RegistroRespostas!$H$2:$H$171,F$20&\"G.1 - Mão-de-obra de fabricação\"&\"Não\")","v":0},{"$f":"COUNTIF(RegistroRespostas!$H$2:$H$171,G$20&\"G.1 - Mão-de-obra de fabricação\"&\"Não\")","v":0},{"$f":"COUNTIF(RegistroRespostas!$H$2:$H$171,H$20&\"G.1 - Mão-de-obra de fabricação\"&\"Não\")","v":0},{"$f":"COUNTIF(RegistroRespostas!$H$2:$H$171,I$20&\"G.1 - Mão-de-obra de fabricação\"&\"Não\")","v":0},{"$f":"COUNTIF(RegistroRespostas!$H$2:$H$171,J$20&\"G.1 - Mão-de-obra de fabricação\"&\"Não\")","v":0},{"$f":"COUNTIF(RegistroRespostas!$H$2:$H$171,K$20&\"G.1 - Mão-de-obra de fabricação\"&\"Não\")","v":0},{"$f":"COUNTIF(RegistroRespostas!$H$2:$H$171,L$20&\"G.1 - Mão-de-obra de fabricação\"&\"Não\")","v":0},{"$f":"COUNTIF(RegistroRespostas!$H$2:$H$171,M$20&\"G.1 - Mão-de-obra de fabricação\"&\"Não\")","v":0},{"$f":"COUNTIF(RegistroRespostas!$H$2:$H$171,N$20&\"G.1 - Mão-de-obra de fabricação\"&\"Não\")","v":0},{"$f":"COUNTIF(RegistroRespostas!$H$2:$H$171,O$20&\"G.1 - Mão-de-obra de fabricação\"&\"Não\")","v":0},null,{"$f":"COUNTIF(RegistroRespostas!$H$2:$H$171,F$20&\"G.1 - Mão-de-obra de fabricação\"&\"Sim\")","v":0},{"$f":"COUNTIF(RegistroRespostas!$H$2:$H$171,G$20&\"G.1 - Mão-de-obra de fabricação\"&\"Sim\")","v":0},{"$f":"COUNTIF(RegistroRespostas!$H$2:$H$171,H$20&\"G.1 - Mão-de-obra de fabricação\"&\"Sim\")","v":0},{"$f":"COUNTIF(RegistroRespostas!$H$2:$H$171,I$20&\"G.1 - Mão-de-obra de fabricação\"&\"Sim\")","v":0},{"$f":"COUNTIF(RegistroRespostas!$H$2:$H$171,J$20&\"G.1 - Mão-de-obra de fabricação\"&\"Sim\")","v":0},{"$f":"COUNTIF(RegistroRespostas!$H$2:$H$171,K$20&\"G.1 - Mão-de-obra de fabricação\"&\"Sim\")","v":0},{"$f":"COUNTIF(RegistroRespostas!$H$2:$H$171,L$20&\"G.1 - Mão-de-obra de fabricação\"&\"Sim\")","v":0},{"$f":"COUNTIF(RegistroRespostas!$H$2:$H$171,M$20&\"G.1 - Mão-de-obra de fabricação\"&\"Sim\")","v":0},{"$f":"COUNTIF(RegistroRespostas!$H$2:$H$171,N$20&\"G.1 - Mão-de-obra de fabricação\"&\"Sim\")","v":0},{"$f":"COUNTIF(RegistroRespostas!$H$2:$H$171,O$20&\"G.1 - Mão-de-obra de fabricação\"&\"Sim\")","v":0}]
[null,null,null,null,"H - Instalações",{"$f":"IF(OR(F45=\"r\",F46=\"r\"),\"r\",IF(OR(F45=\"a\",F46=\"a\"),\"a\",\"\"))","v":""},{"$f":"IF(OR(G45=\"r\",G46=\"r\"),\"r\",IF(OR(G45=\"a\",G46=\"a\"),\"a\",\"\"))","v":""},{"$f":"IF(OR(H45=\"r\",H46=\"r\"),\"r\",IF(OR(H45=\"a\",H46=\"a\"),\"a\",\"\"))","v":""},{"$f":"IF(OR(I45=\"r\",I46=\"r\"),\"r\",IF(OR(I45=\"a\",I46=\"a\"),\"a\",\"\"))","v":""},{"$f":"IF(OR(J45=\"r\",J46=\"r\"),\"r\",IF(OR(J45=\"a\",J46=\"a\"),\"a\",\"\"))","v":""},{"$f":"IF(OR(K45=\"r\",K46=\"r\"),\"r\",IF(OR(K45=\"a\",K46=\"a\"),\"a\",\"\"))","v":""},{"$f":"IF(OR(L45=\"r\",L46=\"r\"),\"r\",IF(OR(L45=\"a\",L46=\"a\"),\"a\",\"\"))","v":""},{"$f":"IF(OR(M45=\"r\",M46=\"r\"),\"r\",IF(OR(M45=\"a\",M46=\"a\"),\"a\",\"\"))","v":""},{"$f":"IF(OR(N45=\"r\",N46=\"r\"),\"r\",IF(OR(N45=\"a\",N46=\"a\"),\"a\",\"\"))","v":""},{"$f":"IF(OR(O45=\"r\",O46=\"r\"),\"r\",IF(OR(O45=\"a\",O46=\"a\"),\"a\",\"\"))","v":""}]
[null,null,null,null,"H.1 -Equipamentos e Ferramentas ",{"$f":"IF(AND(T45=0,AE45=0),\"\",IF(T45<>0,\"r\",\"a\"))","v":""},{"$f":"IF(AND(U45=0,AF45=0),\"\",IF(U45<>0,\"r\",\"a\"))","v":""},{"$f":"IF(AND(V45=0,AG45=0),\"\",IF(V45<>0,\"r\",\"a\"))","v":""},{"$f":"IF(AND(W45=0,AH45=0),\"\",IF(W45<>0,\"r\",\"a\"))","v":""},{"$f":"IF(AND(X45=0,AI45=0),\"\",IF(X45<>0,\"r\",\"a\"))","v":""},{"$f":"IF(AND(Y45=0,AJ45=0),\"\",IF(Y45<>0,\"r\",\"a\"))","v":""},{"$f":"IF(AND(Z45=0,AK45=0),\"\",IF(Z45<>0,\"r\",\"a\"))","v":""},{"$f":"IF(AND(AA45=0,AL45=0),\"\",IF(AA45<>0,\"r\",\"a\"))","v":""},{"$f":"IF(AND(AB45=0,AM45=0),\"\",IF(AB45<>0,\"r\",\"a\"))","v":""},{"$f":"IF(AND(AC45=0,AN45=0),\"\",IF(AC45<>0,\"r\",\"a\"))","v":""},null,null,null,null,{"$f":"COUNTIF(RegistroRespostas!$H$2:$H$360,F$20&$E45&\"Não\")","v":0},{"$f":"COUNTIF(RegistroRespostas!$H$2:$H$360,G$20&$E45&\"Não\")","v":0},{"$f":"COUNTIF(RegistroRespostas!$H$2:$H$360,H$20&$E45&\"Não\")","v":0},{"$f":"COUNTIF(RegistroRespostas!$H$2:$H$360,I$20&$E45&\"Não\")","v":0},{"$f":"COUNTIF(RegistroRespostas!$H$2:$H$360,J$20&$E45&\"Não\")","v":0},{"$f":"COUNTIF(RegistroRespostas!$H$2:$H$360,K$20&$E45&\"Não\")","v":0},{"$f":"COUNTIF(RegistroRespostas!$H$2:$H$360,L$20&$E45&\"Não\")","v":0},{"$f":"COUNTIF(RegistroRespostas!$H$2:$H$360,M$20&$E45&\"Não\")","v":0},{"$f":"COUNTIF(RegistroRespostas!$H$2:$H$360,N$20&$E45&\"Não\")","v":0},{"$f":"COUNTIF(RegistroRespostas!$H$2:$H$360,O$20&$E45&\"Não\")","v":0},null,{"$f":"COUNTIF(RegistroRespostas!$H$2:$H$171,F$20&$E45&\"Sim\")","v":0},{"$f":"COUNTIF(RegistroRespostas!$H$2:$H$171,G$20&$E45&\"Sim\")","v":0},{"$f":"COUNTIF(RegistroRespostas!$H$2:$H$171,H$20&$E45&\"Sim\")","v":0},{"$f":"COUNTIF(RegistroRespostas!$H$2:$H$171,I$20&$E45&\"Sim\")","v":0},{"$f":"COUNTIF(RegistroRespostas!$H$2:$H$171,J$20&$E45&\"Sim\")","v":0},{"$f":"COUNTIF(RegistroRespostas!$H$2:$H$171,K$20&$E45&\"Sim\")","v":0},{"$f":"COUNTIF(RegistroRespostas!$H$2:$H$171,L$20&$E45&\"Sim\")","v":0},{"$f":"COUNTIF(RegistroRespostas!$H$2:$H$171,M$20&$E45&\"Sim\")","v":0},{"$f":"COUNTIF(RegistroRespostas!$H$2:$H$171,N$20&$E45&\"Sim\")","v":0},{"$f":"COUNTIF(RegistroRespostas!$H$2:$H$171,O$20&$E45&\"Sim\")","v":0}]
[null,null,null,null,"H.2 - Infraestrutura",{"$f":"IF(AND(T46=0,AE46=0),\"\",IF(T46<>0,\"r\",\"a\"))","v":""},"","","","","","","","","",null,null,null,null,{"$f":"COUNTIF(RegistroRespostas!$H$2:$H$360,F$20&$E46&\"Não\")","v":0},{"$f":"COUNTIF(RegistroRespostas!$H$2:$H$360,G$20&$E46&\"Não\")","v":0},{"$f":"COUNTIF(RegistroRespostas!$H$2:$H$360,H$20&$E46&\"Não\")","v":0},{"$f":"COUNTIF(RegistroRespostas!$H$2:$H$360,I$20&$E46&\"Não\")","v":0},{"$f":"COUNTIF(RegistroRespostas!$H$2:$H$360,J$20&$E46&\"Não\")","v":0},{"$f":"COUNTIF(RegistroRespostas!$H$2:$H$360,K$20&$E46&\"Não\")","v":0},{"$f":"COUNTIF(RegistroRespostas!$H$2:$H$360,L$20&$E46&\"Não\")","v":0},{"$f":"COUNTIF(RegistroRespostas!$H$2:$H$360,M$20&$E46&\"Não\")","v":0},{"$f":"COUNTIF(RegistroRespostas!$H$2:$H$360,N$20&$E46&\"Não\")","v":0},{"$f":"COUNTIF(RegistroRespostas!$H$2:$H$360,O$20&$E46&\"Não\")","v":0},null,{"$f":"COUNTIF(RegistroRespostas!$H$2:$H$171,F$20&$E46&\"Sim\")","v":0},{"$f":"COUNTIF(RegistroRespostas!$H$2:$H$171,G$20&$E46&\"Sim\")","v":0},{"$f":"COUNTIF(RegistroRespostas!$H$2:$H$171,H$20&$E46&\"Sim\")","v":0},{"$f":"COUNTIF(RegistroRespostas!$H$2:$H$171,I$20&$E46&\"Sim\")","v":0},{"$f":"COUNTIF(RegistroRespostas!$H$2:$H$171,J$20&$E46&\"Sim\")","v":0},{"$f":"COUNTIF(RegistroRespostas!$H$2:$H$171,K$20&$E46&\"Sim\")","v":0},{"$f":"COUNTIF(RegistroRespostas!$H$2:$H$171,L$20&$E46&\"Sim\")","v":0},{"$f":"COUNTIF(RegistroRespostas!$H$2:$H$171,M$20&$E46&\"Sim\")","v":0},{"$f":"COUNTIF(RegistroRespostas!$H$2:$H$171,N$20&$E46&\"Sim\")","v":0},{"$f":"COUNTIF(RegistroRespostas!$H$2:$H$171,O$20&$E46&\"Sim\")","v":0}]
[null,null,null,null,"I - Gestão da Fabricação",{"$f":"IF(OR(F48=\"r\",F49=\"r\"),\"r\",IF(OR(F48=\"a\",F49=\"a\"),\"a\",\"\"))","v":""},{"$f":"IF(OR(G48=\"r\",G49=\"r\"),\"r\",IF(OR(G48=\"a\",G49=\"a\"),\"a\",\"\"))","v":""},{"$f":"IF(OR(H48=\"r\",H49=\"r\"),\"r\",IF(OR(H48=\"a\",H49=\"a\"),\"a\",\"\"))","v":""},{"$f":"IF(OR(I48=\"r\",I49=\"r\"),\"r\",IF(OR(I48=\"a\",I49=\"a\"),\"a\",\"\"))","v":""},{"$f":"IF(OR(J48=\"r\",J49=\"r\"),\"r\",IF(OR(J48=\"a\",J49=\"a\"),\"a\",\"\"))","v":""},{"$f":"IF(OR(K48=\"r\",K49=\"r\"),\"r\",IF(OR(K48=\"a\",K49=\"a\"),\"a\",\"\"))","v":""},{"$f":"IF(OR(L48=\"r\",L49=\"r\"),\"r\",IF(OR(L48=\"a\",L49=\"a\"),\"a\",\"\"))","v":""},{"$f":"IF(OR(M48=\"r\",M49=\"r\"),\"r\",IF(OR(M48=\"a\",M49=\"a\"),\"a\",\"\"))","v":""},{"$f":"IF(OR(N48=\"r\",N49=\"r\"),\"r\",IF(OR(N48=\"a\",N49=\"a\"),\"a\",\"\"))","v":""},{"$f":"IF(OR(O48=\"r\",O49=\"r\"),\"r\",IF(OR(O48=\"a\",O49=\"a\"),\"a\",\"\"))","v":""}]
[null,null,null,null,"I.1 - Planejamento e Programação da Fabricação ",{"$f":"IF(AND(T48=0,AE48=0),\"\",IF(T48<>0,\"r\",\"a\"))","v":""},{"$f":"IF(AND(U48=0,AF48=0),\"\",IF(U48<>0,\"r\",\"a\"))","v":""},{"$f":"IF(AND(V48=0,AG48=0),\"\",IF(V48<>0,\"r\",\"a\"))","v":""},{"$f":"IF(AND(W48=0,AH48=0),\"\",IF(W48<>0,\"r\",\"a\"))","v":""},{"$f":"IF(AND(X48=0,AI48=0),\"\",IF(X48<>0,\"r\",\"a\"))","v":""},{"$f":"IF(AND(Y48=0,AJ48=0),\"\",IF(Y48<>0,\"r\",\"a\"))","v":""},{"$f":"IF(AND(Z48=0,AK48=0),\"\",IF(Z48<>0,\"r\",\"a\"))","v":""},{"$f":"IF(AND(AA48=0,AL48=0),\"\",IF(AA48<>0,\"r\",\"a\"))","v":""},{"$f":"IF(AND(AB48=0,AM48=0),\"\",IF(AB48<>0,\"r\",\"a\"))","v":""},{"$f":"IF(AND(AC48=0,AN48=0),\"\",IF(AC48<>0,\"r\",\"a\"))","v":""},null,null,null,null,{"$f":"COUNTIF(RegistroRespostas!$H$2:$H$360,F$20&$E48&\"Não\")","v":0},{"$f":"COUNTIF(RegistroRespostas!$H$2:$H$360,G$20&$E48&\"Não\")","v":0},{"$f":"COUNTIF(RegistroRespostas!$H$2:$H$360,H$20&$E48&\"Não\")","v":0},{"$f":"COUNTIF(RegistroRespostas!$H$2:$H$360,I$20&$E48&\"Não\")","v":0},{"$f":"COUNTIF(RegistroRespostas!$H$2:$H$360,J$20&$E48&\"Não\")","v":0},{"$f":"COUNTIF(RegistroRespostas!$H$2:$H$360,K$20&$E48&\"Não\")","v":0},{"$f":"COUNTIF(RegistroRespostas!$H$2:$H$360,L$20&$E48&\"Não\")","v":0},{"$f":"COUNTIF(RegistroRespostas!$H$2:$H$360,M$20&$E48&\"Não\")","v":0},{"$f":"COUNTIF(RegistroRespostas!$H$2:$H$360,N$20&$E48&\"Não\")","v":0},{"$f":"COUNTIF(RegistroRespostas!$H$2:$H$360,O$20&$E48&\"Não\")","v":0},null,{"$f":"COUNTIF(RegistroRespostas!$H$2:$H$171,F$20&$E48&\"Sim\")","v":0},{"$f":"COUNTIF(RegistroRespostas!$H$2:$H$171,G$20&$E48&\"Sim\")","v":0},{"$f":"COUNTIF(RegistroRespostas!$H$2:$H$171,H$20&$E48&\"Sim\")","v":0},{"$f":"COUNTIF(RegistroRespostas!$H$2:$H$171,I$20&$E48&\"Sim\")","v":0},{"$f":"COUNTIF(RegistroRespostas!$H$2:$H$171,J$20&$E48&\"Sim\")","v":0},{"$f":"COUNTIF(RegistroRespostas!$H$2:$H$171,K$20&$E48&\"Sim\")","v":0},{"$f":"COUNTIF(RegistroRespostas!$H$2:$H$171,L$20&$E48&\"Sim\")","v":0},{"$f":"COUNTIF(RegistroRespostas!$H$2:$H$171,M$20&$E48&\"Sim\")","v":0},{"$f":"COUNTIF(RegistroRespostas!$H$2:$H$171,N$20&$E48&\"Sim\")","v":0},{"$f":"COUNTIF(RegistroRespostas!$H$2:$H$171,O$20&$E48&\"Sim\")","v":0}]
[null,null,null,null,"I.2 - Planejamento de Materiais",{"$f":"IF(AND(T49=0,AE49=0),\"\",IF(T49<>0,\"r\",\"a\"))","v":""},"","","","","","","","","",null,null,null,null,{"$f":"COUNTIF(RegistroRespostas!$H$2:$H$360,F$20&$E49&\"Não\")","v":0},{"$f":"COUNTIF(RegistroRespostas!$H$2:$H$360,G$20&$E49&\"Não\")","v":0},{"$f":"COUNTIF(RegistroRespostas!$H$2:$H$360,H$20&$E49&\"Não\")","v":0},{"$f":"COUNTIF(RegistroRespostas!$H$2:$H$360,I$20&$E49&\"Não\")","v":0},{"$f":"COUNTIF(RegistroRespostas!$H$2:$H$360,J$20&$E49&\"Não\")","v":0},{"$f":"COUNTIF(RegistroRespostas!$H$2:$H$360,K$20&$E49&\"Não\")","v":0},{"$f":"COUNTIF(RegistroRespostas!$H$2:$H$360,L$20&$E49&\"Não\")","v":0},{"$f":"COUNTIF(RegistroRespostas!$H$2:$H$360,M$20&$E49&\"Não\")","v":0},{"$f":"COUNTIF(RegistroRespostas!$H$2:$H$360,N$20&$E49&\"Não\")","v":0},{"$f":"COUNTIF(RegistroRespostas!$H$2:$H$360,O$20&$E49&\"Não\")","v":0},null,{"$f":"COUNTIF(RegistroRespostas!$H$2:$H$171,F$20&$E49&\"Sim\")","v":0},{"$f":"COUNTIF(RegistroRespostas!$H$2:$H$171,G$20&$E49&\"Sim\")","v":0},{"$f":"COUNTIF(RegistroRespostas!$H$2:$H$171,H$20&$E49&\"Sim\")","v":0},{"$f":"COUNTIF(RegistroRespostas!$H$2:$H$171,I$20&$E49&\"Sim\")","v":0},{"$f":"COUNTIF(RegistroRespostas!$H$2:$H$171,J$20&$E49&\"Sim\")","v":0},{"$f":"COUNTIF(RegistroRespostas!$H$2:$H$171,K$20&$E49&\"Sim\")","v":0},{"$f":"COUNTIF(RegistroRespostas!$H$2:$H$171,L$20&$E49&\"Sim\")","v":0},{"$f":"COUNTIF(RegistroRespostas!$H$2:$H$171,M$20&$E49&\"Sim\")","v":0},{"$f":"COUNTIF(RegistroRespostas!$H$2:$H$171,N$20&$E49&\"Sim\")","v":0},{"$f":"COUNTIF(RegistroRespostas!$H$2:$H$171,O$20&$E49&\"Sim\")","v":0}]

{"sheet":"RegistroRespostas","index":6,"n_rows":360,"n_cols":8,"rows_kept":360,"cut":false,"hidden":false,"merged":[]}
["MRL","Áres de Conhecimento","Desdobramento Área de Conhecimento","Questão MRL","Resposta","Evidências"]
[null,null,null,null,null,null,null,{"$f":"A2&C2&E2","v":""}]
[null,null,null,null,null,null,null,""]
[null,null,null,null,null,null,null,""]
[null,null,null,null,null,null,null,""]
[null,null,null,null,null,null,null,""]
[null,null,null,null,null,null,null,""]
[null,null,null,null,null,null,null,""]
[null,null,null,null,null,null,null,""]
[null,null,null,null,null,null,null,""]
[null,null,null,null,null,null,null,""]
[null,null,null,null,null,null,null,""]
[null,null,null,null,null,null,null,""]
[null,null,null,null,null,null,null,""]
[null,null,null,null,null,null,null,""]
[null,null,null,null,null,null,null,""]
[null,null,null,null,null,null,null,""]
[null,null,null,null,null,null,null,""]
[null,null,null,null,null,null,null,""]
[null,null,null,null,null,null,null,""]
[null,null,null,null,null,null,null,""]
[null,null,null,null,null,null,null,""]
[null,null,null,null,null,null,null,""]
[null,null,null,null,null,null,null,""]
[null,null,null,null,null,null,null,""]
[null,null,null,null,null,null,null,""]
[null,null,null,null,null,null,null,""]
[null,null,null,null,null,null,null,""]
[null,null,null,null,null,null,null,""]
[null,null,null,null,null,null,null,""]
[null,null,null,null,null,null,null,""]
[null,null,null,null,null,null,null,""]
[null,null,null,null,null,null,null,""]
[null,null,null,null,null,null,null,""]
[null,null,null,null,null,null,null,""]
[null,null,null,null,null,null,null,""]
[null,null,null,null,null,null,null,""]
[null,null,null,null,null,null,null,""]
[null,null,null,null,null,null,null,""]
[null,null,null,null,null,null,null,""]
[null,null,null,null,null,null,null,""]
[null,null,null,null,null,null,null,""]
[null,null,null,null,null,null,null,""]
[null,null,null,null,null,null,null,""]
[null,null,null,null,null,null,null,""]
[null,null,null,null,null,null,null,""]
[null,null,null,null,null,null,null,""]
[null,null,null,null,null,null,null,""]
[null,null,null,null,null,null,null,""]
[null,null,null,null,null,null,null,""]
[null,null,null,null,null,null,null,""]
[null,null,null,null,null,null,null,""]
[null,null,null,null,null,null,null,""]
[null,null,null,null,null,null,null,""]
[null,null,null,null,null,null,null,""]
[null,null,null,null,null,null,null,""]
[null,null,null,null,null,null,null,""]
[null,null,null,null,null,null,null,""]
[null,null,null,null,null,null,null,""]
[null,null,null,null,null,null,null,""]
[null,null,null,null,null,null,null,""]
[null,null,null,null,null,null,null,""]
[null,null,null,null,null,null,null,""]
[null,null,null,null,null,null,null,""]
[null,null,null,null,null,null,null,""]
[null,null,null,null,null,null,null,{"$f":"A66&C66&E66","v":""}]
[null,null,null,null,null,null,null,""]
[null,null,null,null,null,null,null,""]
[null,null,null,null,null,null,null,""]
[null,null,null,null,null,null,null,""]
[null,null,null,null,null,null,null,""]
[null,null,null,null,null,null,null,""]
[null,null,null,null,null,null,null,""]
[null,null,null,null,null,null,null,""]
[null,null,null,null,null,null,null,""]
[null,null,null,null,null,null,null,""]
[null,null,null,null,null,null,null,""]
[null,null,null,null,null,null,null,""]
[null,null,null,null,null,null,null,""]
[null,null,null,null,null,null,null,""]
[null,null,null,null,null,null,null,""]
[null,null,null,null,null,null,null,""]
[null,null,null,null,null,null,null,""]
[null,null,null,null,null,null,null,""]
[null,null,null,null,null,null,null,""]
[null,null,null,null,null,null,null,""]
[null,null,null,null,null,null,null,""]
[null,null,null,null,null,null,null,""]
[null,null,null,null,null,null,null,""]
[null,null,null,null,null,null,null,""]
[null,null,null,null,null,null,null,""]
[null,null,null,null,null,null,null,""]
[null,null,null,null,null,null,null,""]
[null,null,null,null,null,null,null,""]
[null,null,null,null,null,null,null,""]
[null,null,null,null,null,null,null,""]
[null,null,null,null,null,null,null,""]
[null,null,null,null,null,null,null,""]
[null,null,null,null,null,null,null,""]
[null,null,null,null,null,null,null,""]
[null,null,null,null,null,null,null,""]
[null,null,null,null,null,null,null,""]
[null,null,null,null,null,null,null,""]
[null,null,null,null,null,null,null,""]
[null,null,null,null,null,null,null,""]
[null,null,null,null,null,null,null,""]
[null,null,null,null,null,null,null,""]
[null,null,null,null,null,null,null,""]
[null,null,null,null,null,null,null,""]
[null,null,null,null,null,null,null,""]
[null,null,null,null,null,null,null,""]
[null,null,null,null,null,null,null,""]
[null,null,null,null,null,null,null,""]
[null,null,null,null,null,null,null,""]
[null,null,null,null,null,null,null,""]
[null,null,null,null,null,null,null,""]
[null,null,null,null,null,null,null,""]
[null,null,null,null,null,null,null,""]
[null,null,null,null,null,null,null,""]
[null,null,null,null,null,null,null,""]
[null,null,null,null,null,null,null,""]
[null,null,null,null,null,null,null,""]
[null,null,null,null,null,null,null,""]
[null,null,null,null,null,null,null,""]
[null,null,null,null,null,null,null,""]
[null,null,null,null,null,null,null,""]
[null,null,null,null,null,null,null,""]
[null,null,null,null,null,null,null,""]
[null,null,null,null,null,null,null,""]
[null,null,null,null,null,null,null,{"$f":"A130&C130&E130","v":""}]
[null,null,null,null,null,null,null,""]
[null,null,null,null,null,null,null,""]
[null,null,null,null,null,null,null,""]
[null,null,null,null,null,null,null,""]
[null,null,null,null,null,null,null,""]
[null,null,null,null,null,null,null,""]
[null,null,null,null,null,null,null,""]
[null,null,null,null,null,null,null,""]
[null,null,null,null,null,null,null,""]
[null,null,null,null,null,null,null,""]
[null,null,null,null,null,null,null,""]
[null,null,null,null,null,null,null,""]
[null,null,null,null,null,null,null,""]
[null,null,null,null,null,null,null,""]
[null,null,null,null,null,null,null,""]
[null,null,null,null,null,null,null,""]
[null,null,null,null,null,null,null,""]
[null,null,null,null,null,null,null,""]
[null,null,null,null,null,null,null,""]
[null,null,null,null,null,null,null,""]
[null,null,null,null,null,null,null,""]
[null,null,null,null,null,null,null,""]
[null,null,null,null,null,null,null,""]
[null,null,null,null,null,null,null,""]
[null,null,null,null,null,null,null,""]
[null,null,null,null,null,null,null,""]
[null,null,null,null,null,null,null,""]
[null,null,null,null,null,null,null,""]
[null,null,null,null,null,null,null,""]
[null,null,null,null,null,null,null,""]
[null,null,null,null,null,null,null,""]
[null,null,null,null,null,null,null,""]
[null,null,null,null,null,null,null,""]
[null,null,null,null,null,null,null,""]
[null,null,null,null,null,null,null,""]
[null,null,null,null,null,null,null,""]
[null,null,null,null,null,null,null,""]
[null,null,null,null,null,null,null,""]
[null,null,null,null,null,null,null,""]
[null,null,null,null,null,null,null,""]
[null,null,null,null,null,null,null,""]
[null,null,null,null,null,null,null,""]
[null,null,null,null,null,null,null,""]
[null,null,null,null,null,null,null,""]
[null,null,null,null,null,null,null,""]
[null,null,null,null,null,null,null,""]
[null,null,null,null,null,null,null,""]
[null,null,null,null,null,null,null,""]
[null,null,null,null,null,null,null,""]
[null,null,null,null,null,null,null,""]
[null,null,null,null,null,null,null,""]
[null,null,null,null,null,null,null,""]
[null,null,null,null,null,null,null,""]
[null,null,null,null,null,null,null,""]
[null,null,null,null,null,null,null,""]
[null,null,null,null,null,null,null,""]
[null,null,null,null,null,null,null,""]
[null,null,null,null,null,null,null,""]
[null,null,null,null,null,null,null,""]
[null,null,null,null,null,null,null,""]
[null,null,null,null,null,null,null,""]
[null,null,null,null,null,null,null,""]
[null,null,null,null,null,null,null,""]
[null,null,null,null,null,null,null,{"$f":"A194&C194&E194","v":""}]
[null,null,null,null,null,null,null,""]
[null,null,null,null,null,null,null,""]
[null,null,null,null,null,null,null,""]
[null,null,null,null,null,null,null,""]
[null,null,null,null,null,null,null,""]
[null,null,null,null,null,null,null,""]
[null,null,null,null,null,null,null,""]
[null,null,null,null,null,null,null,""]
[null,null,null,null,null,null,null,""]
[null,null,null,null,null,null,null,""]
[null,null,null,null,null,null,null,""]
[null,null,null,null,null,null,null,""]
[null,null,null,null,null,null,null,""]
[null,null,null,null,null,null,null,""]
[null,null,null,null,null,null,null,""]
[null,null,null,null,null,null,null,""]
[null,null,null,null,null,null,null,""]
[null,null,null,null,null,null,null,""]
[null,null,null,null,null,null,null,""]
[null,null,null,null,null,null,null,""]
[null,null,null,null,null,null,null,""]
[null,null,null,null,null,null,null,""]
[null,null,null,null,null,null,null,""]
[null,null,null,null,null,null,null,""]
[null,null,null,null,null,null,null,""]
[null,null,null,null,null,null,null,""]
[null,null,null,null,null,null,null,""]
[null,null,null,null,null,null,null,""]
[null,null,null,null,null,null,null,""]
[null,null,null,null,null,null,null,""]
[null,null,null,null,null,null,null,""]
[null,null,null,null,null,null,null,""]
[null,null,null,null,null,null,null,""]
[null,null,null,null,null,null,null,""]
[null,null,null,null,null,null,null,""]
[null,null,null,null,null,null,null,""]
[null,null,null,null,null,null,null,""]
[null,null,null,null,null,null,null,""]
[null,null,null,null,null,null,null,""]
[null,null,null,null,null,null,null,""]
[null,null,null,null,null,null,null,""]
[null,null,null,null,null,null,null,""]
[null,null,null,null,null,null,null,""]
[null,null,null,null,null,null,null,""]
[null,null,null,null,null,null,null,""]
[null,null,null,null,null,null,null,""]
[null,null,null,null,null,null,null,""]
[null,null,null,null,null,null,null,""]
[null,null,null,null,null,null,null,""]
[null,null,null,null,null,null,null,""]
[null,null,null,null,null,null,null,""]
[null,null,null,null,null,null,null,""]
[null,null,null,null,null,null,null,""]
[null,null,null,null,null,null,null,""]
[null,null,null,null,null,null,null,""]
[null,null,null,null,null,null,null,""]
[null,null,null,null,null,null,null,""]
[null,null,null,null,null,null,null,""]
[null,null,null,null,null,null,null,""]
[null,null,null,null,null,null,null,""]
[null,null,null,null,null,null,null,""]
[null,null,null,null,null,null,null,""]
[null,null,null,null,null,null,null,""]
[null,null,null,null,null,null,null,{"$f":"A258&C258&E258","v":""}]
[null,null,null,null,null,null,null,""]
[null,null,null,null,null,null,null,""]
[null,null,null,null,null,null,null,""]
[null,null,null,null,null,null,null,""]
[null,null,null,null,null,null,null,""]
[null,null,null,null,null,null,null,""]
[null,null,null,null,null,null,null,""]
[null,null,null,null,null,null,null,""]
[null,null,null,null,null,null,null,""]
[null,null,null,null,null,null,null,""]
[null,null,null,null,null,null,null,""]
[null,null,null,null,null,null,null,""]
[null,null,null,null,null,null,null,""]
[null,null,null,null,null,null,null,""]
[null,null,null,null,null,null,null,""]
[null,null,null,null,null,null,null,""]
[null,null,null,null,null,null,null,""]
[null,null,null,null,null,null,null,""]
[null,null,null,null,null,null,null,""]
[null,null,null,null,null,null,null,""]
[null,null,null,null,null,null,null,""]
[null,null,null,null,null,null,null,""]
[null,null,null,null,null,null,null,""]
[null,null,null,null,null,null,null,""]
[null,null,null,null,null,null,null,""]
[null,null,null,null,null,null,null,""]
[null,null,null,null,null,null,null,""]
[null,null,null,null,null,null,null,""]
[null,null,null,null,null,null,null,""]
[null,null,null,null,null,null,null,""]
[null,null,null,null,null,null,null,""]
[null,null,null,null,null,null,null,""]
[null,null,null,null,null,null,null,""]
[null,null,null,null,null,null,null,""]
[null,null,null,null,null,null,null,""]
[null,null,null,null,null,null,null,""]
[null,null,null,null,null,null,null,""]
[null,null,null,null,null,null,null,""]
[null,null,null,null,null,null,null,""]
[null,null,null,null,null,null,null,""]
[null,null,null,null,null,null,null,""]
[null,null,null,null,null,null,null,""]
[null,null,null,null,null,null,null,""]
[null,null,null,null,null,null,null,""]
[null,null,null,null,null,null,null,""]
[null,null,null,null,null,null,null,""]
[null,null,null,null,null,null,null,""]
[null,null,null,null,null,null,null,""]
[null,null,null,null,null,null,null,""]
[null,null,null,null,null,null,null,""]
[null,null,null,null,null,null,null,""]
[null,null,null,null,null,null,null,""]
[null,null,null,null,null,null,null,""]
[null,null,null,null,null,null,null,""]
[null,null,null,null,null,null,null,""]
[null,null,null,null,null,null,null,""]
[null,null,null,null,null,null,null,""]
[null,null,null,null,null,null,null,""]
[null,null,null,null,null,null,null,""]
[null,null,null,null,null,null,null,""]
[null,null,null,null,null,null,null,""]
[null,null,null,null,null,null,null,""]
[null,null,null,null,null,null,null,""]
[null,null,null,null,null,null,null,{"$f":"A322&C322&E322","v":""}]
[null,null,null,null,null,null,null,""]
[null,null,null,null,null,null,null,""]
[null,null,null,null,null,null,null,""]
[null,null,null,null,null,null,null,""]
[null,null,null,null,null,null,null,""]
[null,null,null,null,null,null,null,""]
[null,null,null,null,null,null,null,""]
[null,null,null,null,null,null,null,""]
[null,null,null,null,null,null,null,""]
[null,null,null,null,null,null,null,""]
[null,null,null,null,null,null,null,""]
[null,null,null,null,null,null,null,""]
[null,null,null,null,null,null,null,""]
[null,null,null,null,null,null,null,""]
[null,null,null,null,null,null,null,""]
[null,null,null,null,null,null,null,""]
[null,null,null,null,null,null,null,""]
[null,null,null,null,null,null,null,""]
[null,null,null,null,null,null,null,""]
[null,null,null,null,null,null,null,""]
[null,null,null,null,null,null,null,""]
[null,null,null,null,null,null,null,""]
[null,null,null,null,null,null,null,""]
[null,null,null,null,null,null,null,""]
[null,null,null,null,null,null,null,""]
[null,null,null,null,null,null,null,""]
[null,null,null,null,null,null,null,""]
[null,null,null,null,null,null,null,""]
[null,null,null,null,null,null,null,""]
[null,null,null,null,null,null,null,""]
[null,null,null,null,null,null,null,""]
[null,null,null,null,null,null,null,""]
[null,null,null,null,null,null,null,""]
[null,null,null,null,null,null,null,""]
[null,null,null,null,null,null,null,""]
[null,null,null,null,null,null,null,""]
[null,null,null,null,null,null,null,""]
[null,null,null,null,null,null,null,""]

{"sheet":"aux","index":7,"n_rows":56,"n_cols":10,"rows_kept":56,"cut":false,"hidden":false,"merged":[]}
["MRL","Áres de Conhecimento","Desdobramento Área de Conhecimento","Questão MRL","Resposta","Evidências","aux1"]
[null,null,null,null,null,null,{"$f":"IF(A2=\"\",\"na\",IF(E2=\"Sim\",1,IF(E2=\"Não\",0,\"vazio\")))","v":"na"},null,"não",{"$f":"COUNTIF(G2:G56,0)","v":0}]
[null,null,null,null,null,null,{"$f":"IF(A3=\"\",\"na\",IF(E3=\"Sim\",1,IF(E3=\"Não\",0,\"vazio\")))","v":"na"}]
[null,null,null,null,null,null,"na"]
[null,null,null,null,null,null,"na"]
[null,null,null,null,null,null,"na"]
[null,null,null,null,null,null,"na"]
[null,null,null,null,null,null,"na"]
[null,null,null,null,null,null,"na"]
[null,null,null,null,null,null,"na"]
[null,null,null,null,null,null,"na"]
[null,null,null,null,null,null,"na"]
[null,null,null,null,null,null,"na"]
[null,null,null,null,null,null,"na"]
[null,null,null,null,null,null,"na"]
[null,null,null,null,null,null,"na"]
[null,null,null,null,null,null,"na"]
[null,null,null,null,null,null,"na"]
[null,null,null,null,null,null,"na"]
[null,null,null,null,null,null,"na"]
[null,null,null,null,null,null,"na"]
[null,null,null,null,null,null,"na"]
[null,null,null,null,null,null,"na"]
[null,null,null,null,null,null,"na"]
[null,null,null,null,null,null,"na"]
[null,null,null,null,null,null,"na"]
[null,null,null,null,null,null,"na"]
[null,null,null,null,null,null,"na"]
[null,null,null,null,null,null,"na"]
[null,null,null,null,null,null,"na"]
[null,null,null,null,null,null,"na"]
[null,null,null,null,null,null,"na"]
[null,null,null,null,null,null,"na"]
[null,null,null,null,null,null,"na"]
[null,null,null,null,null,null,"na"]
[null,null,null,null,null,null,"na"]
[null,null,null,null,null,null,"na"]
[null,null,null,null,null,null,"na"]
[null,null,null,null,null,null,"na"]
[null,null,null,null,null,null,"na"]
[null,null,null,null,null,null,"na"]
[null,null,null,null,null,null,"na"]
[null,null,null,null,null,null,"na"]
[null,null,null,null,null,null,"na"]
[null,null,null,null,null,null,"na"]
[null,null,null,null,null,null,"na"]
[null,null,null,null,null,null,"na"]
[null,null,null,null,null,null,"na"]
[null,null,null,null,null,null,"na"]
[null,null,null,null,null,null,"na"]
[null,null,null,null,null,null,"na"]
[null,null,null,null,null,null,"na"]
[null,null,null,null,null,null,"na"]
[null,null,null,null,null,null,"na"]
[null,null,null,null,null,null,"na"]
[null,null,null,null,null,null,"na"]